Department family,Entity,Date,Expense type,Expense area,Supplier,Transaction number, Amount ,Description
MOJ,HMCTS,01/09/2020,CA - PREPAYMENTS (NON-PFI) - Rates Prepayment Control,Chorley - Magistrates,CHORLEY BOROUGH COUNCIL,507784284/2020-21,"25,430.55",Property related costs
MOJ,HMCTS,01/09/2020,CA - PREPAYMENTS (NON-PFI) - Rates Prepayment Control,Luton - County,LUTON BOROUGH COUNCIL,132730439/2020-21,"27,648.00",Property related costs
MOJ,HMCTS,01/09/2020,CA - PREPAYMENTS (NON-PFI) - Rates Prepayment Control,Birkenhead - County,METROPOLITAN BOROUGH OF WIRRAL,700159992/2020-21,"28,416.00",Property related costs
MOJ,HMCTS,01/09/2020,CA - PREPAYMENTS (NON-PFI) - Rates Prepayment Control,Llandrindod Wells - Magistrates,POWYS COUNTY COUNCIL,6000554286/2020-21,"28,890.00",Property related costs
MOJ,HMCTS,01/09/2020,CA - PREPAYMENTS (NON-PFI) - Rates Prepayment Control,Luton - County,LUTON BOROUGH COUNCIL,13273042X/2020-21,"29,440.00",Property related costs
MOJ,HMCTS,01/09/2020,CA - PREPAYMENTS (NON-PFI) - Rates Prepayment Control,Harrogate - County,HARROGATE BOROUGH COUNCIL,60000857227/2020-21,"29,952.00",Property related costs
MOJ,HMCTS,01/09/2020,CA - PREPAYMENTS (NON-PFI) - Rates Prepayment Control,Reading ETS,READING BOROUGH COUNCIL,51779218/2020-21,"30,208.00",Property related costs
MOJ,HMCTS,01/09/2020,CA - PREPAYMENTS (NON-PFI) - Rates Prepayment Control,Blackpool - County,BLACKPOOL COUNCIL,22143174/2020-21,"30,464.00",Property related costs
MOJ,HMCTS,01/09/2020,CA - PREPAYMENTS (NON-PFI) - Rates Prepayment Control,Cardiff ETS,CARDIFF COUNTY COUNCIL,10408152046/2020-21,"31,297.50",Property related costs
MOJ,HMCTS,01/09/2020,CA - PREPAYMENTS (NON-PFI) - Rates Prepayment Control,Storage Centre AIT,CHARNWOOD BOROUGH COUNCIL,96129816/2020-21,"31,488.00",Property related costs
MOJ,HMCTS,01/09/2020,CA - PREPAYMENTS (NON-PFI) - Rates Prepayment Control,Directors Office - South East Wales,TORFAEN COUNTY BOROUGH COUNCIL,801226254/2020-21,"32,100.00",Property related costs
MOJ,HMCTS,01/09/2020,CA - PREPAYMENTS (NON-PFI) - Rates Prepayment Control,Birmingham ASC,BIRMINGHAM CITY COUNCIL,6005746332/2020-21,"32,290.66",Property related costs
MOJ,HMCTS,01/09/2020,CA - PREPAYMENTS (NON-PFI) - Rates Prepayment Control,Birmingham ASC,BIRMINGHAM CITY COUNCIL,6005720165/2020-21,"32,290.66",Property related costs
MOJ,HMCTS,01/09/2020,CA - PREPAYMENTS (NON-PFI) - Rates Prepayment Control,Birmingham ASC,BIRMINGHAM CITY COUNCIL,6005720176/2020-21,"32,290.66",Property related costs
MOJ,HMCTS,01/09/2020,CA - PREPAYMENTS (NON-PFI) - Rates Prepayment Control,Manchester Lodgings,SALFORD CITY COUNCIL,62643111/2020-21,"32,768.00",Property related costs
MOJ,HMCTS,01/09/2020,CA - PREPAYMENTS (NON-PFI) - Rates Prepayment Control,Birmingham ETS,BIRMINGHAM CITY COUNCIL,6005013585/2020-21,"33,280.00",Property related costs
MOJ,HMCTS,01/09/2020,CA - PREPAYMENTS (NON-PFI) - Rates Prepayment Control,Alton - Magistrates,EAST HAMPSHIRE DISTRICT COUNCIL,1100303720/2020-21,"33,280.00",Property related costs
MOJ,HMCTS,01/09/2020,CA - PREPAYMENTS (NON-PFI) - Rates Prepayment Control,Directors Office - Kent,MAIDSTONE BOROUGH COUNCIL,3175675/2020-21,"33,536.00",Property related costs
MOJ,HMCTS,01/09/2020,CA - PREPAYMENTS (NON-PFI) - Rates Prepayment Control,Southampton Combined (Western Range) - Shared Costs,SOUTHAMPTON CITY COUNCIL,521720820/2020-21,"35,796.00",Property related costs
MOJ,HMCTS,01/09/2020,CA - PREPAYMENTS (NON-PFI) - Rates Prepayment Control,Skipton - Magistrates,CRAVEN DISTRICT COUNCIL,50006326635/2020-21,"36,352.00",Property related costs
MOJ,HMCTS,01/09/2020,CA - PREPAYMENTS (NON-PFI) - Rates Prepayment Control,Durham - Magistrates,DURHAM COUNTY COUNCIL,5600180458/2020-21,"37,117.79",Property related costs
MOJ,HMCTS,01/09/2020,CA - PREPAYMENTS (NON-PFI) - Rates Prepayment Control,Harlow - Magistrates,HARLOW COUNCIL,61043821/2020-21,"37,632.00",Property related costs
MOJ,HMCTS,01/09/2020,CA - PREPAYMENTS (NON-PFI) - Rates Prepayment Control,Newcastle upon Tyne Probate,NEWCASTLE CITY COUNCIL,6970536419/2020-21,"38,144.00",Property related costs
MOJ,HMCTS,01/09/2020,CA - PREPAYMENTS (NON-PFI) - Rates Prepayment Control,Wakefield - County,WAKEFIELD COUNCIL,2400610508/2020-21,"38,274.66",Property related costs
MOJ,HMCTS,01/09/2020,CA - PREPAYMENTS (NON-PFI) - Rates Prepayment Control,Exeter ETS,EXETER CITY COUNCIL,700156490/2020-21,"38,400.00",Property related costs
MOJ,HMCTS,01/09/2020,CA - PREPAYMENTS (NON-PFI) - Rates Prepayment Control,Enf - South East Region,CHERWELL DISTRICT COUNCIL,3468786/2020-21,"38,400.00",Property related costs
MOJ,HMCTS,01/09/2020,CA - PREPAYMENTS (NON-PFI) - Rates Prepayment Control,Reedley - Magistrates,BOROUGH OF PENDLE,7271332/2020-21,"39,424.00",Property related costs
MOJ,HMCTS,01/09/2020,CA - PREPAYMENTS (NON-PFI) - Rates Prepayment Control,Darlington - Magistrates,DARLINGTON BOROUGH COUNCIL,60001867392/2020-21,"39,680.00",Property related costs
MOJ,HMCTS,01/09/2020,CA - PREPAYMENTS (NON-PFI) - Rates Prepayment Control,King's Lynn - Crown,BOROUGH COUNCIL OF KINGS LYNN & WEST NORFOLK,6121541/2020-21,"39,680.00",Property related costs
MOJ,HMCTS,01/09/2020,CA - PREPAYMENTS (NON-PFI) - Rates Prepayment Control,Lancaster - Crown,LANCASTER CITY COUNCIL,101717700/2020-21,"40,192.00",Property related costs
MOJ,HMCTS,01/09/2020,CA - PREPAYMENTS (NON-PFI) - Rates Prepayment Control,Telford - County,TELFORD & WREKIN COUNCIL,80140258/2020-21,"41,216.00",Property related costs
MOJ,HMCTS,01/09/2020,CA - PREPAYMENTS (NON-PFI) - Rates Prepayment Control,Newton Abbott - Magistrates,TEIGNBRIDGE DISTRICT COUNCIL,30474075/2020-21,"42,496.00",Property related costs
MOJ,HMCTS,01/09/2020,CA - PREPAYMENTS (NON-PFI) - Rates Prepayment Control,Blackwood - County,CAERPHILLY COUNTY BOROUGH COUNCIL,510252536/2020-21,"42,532.50",Property related costs
MOJ,HMCTS,01/09/2020,CA - PREPAYMENTS (NON-PFI) - Rates Prepayment Control,Scunthorpe - Magistrates,NORTH LINCOLNSHIRE COUNCIL,13990276533/2020-21,"44,288.00",Property related costs
MOJ,HMCTS,01/09/2020,CA - PREPAYMENTS (NON-PFI) - Rates Prepayment Control,Exetert - Magistrates,EXETER CITY COUNCIL,700075296/2020-21,"44,544.00",Property related costs
MOJ,HMCTS,01/09/2020,CA - PREPAYMENTS (NON-PFI) - Rates Prepayment Control,Burnley - Magistrates,BURNLEY BOROUGH COUNCIL,930151015/2020-21,"44,544.00",Property related costs
MOJ,HMCTS,01/09/2020,CA - PREPAYMENTS (NON-PFI) - Rates Prepayment Control,Barnstaple - Magistrates,NORTH DEVON DISTRICT COUNCIL,93295632/2020-21,"45,824.00",Property related costs
MOJ,HMCTS,01/09/2020,CA - PREPAYMENTS (NON-PFI) - Rates Prepayment Control,Havant SSCS,HAVANT BOROUGH COUNCIL,30230529/2020-21,"45,824.00",Property related costs
MOJ,HMCTS,01/09/2020,CA - PREPAYMENTS (NON-PFI) - Rates Prepayment Control,Colchester (Falkland House) - County,COLCHESTER BOROUGH COUNCIL,65982617/2020-21,"47,616.00",Property related costs
MOJ,HMCTS,01/09/2020,CA - PREPAYMENTS (NON-PFI) - Rates Prepayment Control,Torquay - Magistrates,TORBAY COUNCIL,143154/2020-21,"48,128.00",Property related costs
MOJ,HMCTS,01/09/2020,CA - PREPAYMENTS (NON-PFI) - Rates Prepayment Control,Ipswich - County,IPSWICH BOROUGH COUNCIL,712317112/2020-21,"48,128.00",Property related costs
MOJ,HMCTS,01/09/2020,CA - PREPAYMENTS (NON-PFI) - Rates Prepayment Control,Sunderland- Magistrates,SUNDERLAND CITY COUNCIL,016463/2020-21,"48,384.00",Property related costs
MOJ,HMCTS,01/09/2020,CA - PREPAYMENTS (NON-PFI) - Rates Prepayment Control,Leyland - Magistrates,SOUTH RIBBLE BOROUGH COUNCIL,706632837/2020-21,"48,384.00",Property related costs
MOJ,HMCTS,01/09/2020,CA - PREPAYMENTS (NON-PFI) - Rates Prepayment Control,Torquay & Newton Abbot  - County,TORBAY COUNCIL,953087/2020-21,"48,640.00",Property related costs
MOJ,HMCTS,01/09/2020,CA - PREPAYMENTS (NON-PFI) - Rates Prepayment Control,Cwmbran - Magistrates,TORFAEN COUNTY BOROUGH COUNCIL,801218543/2020-21,"50,290.00",Property related costs
MOJ,HMCTS,01/09/2020,CA - PREPAYMENTS (NON-PFI) - Rates Prepayment Control,Shrewsbury Crown Court - Crown,SHROPSHIRE COUNCIL,2300060250006/2020-21,"50,934.11",Property related costs
MOJ,HMCTS,01/09/2020,CA - PREPAYMENTS (NON-PFI) - Rates Prepayment Control,Loughborough AIT,CHARNWOOD BOROUGH COUNCIL,96106000/2020-21,"51,712.00",Property related costs
MOJ,HMCTS,01/09/2020,CA - PREPAYMENTS (NON-PFI) - Rates Prepayment Control,Fleetwood - Magistrates,WYRE BOROUGH COUNCIL,6315473/2020-21,"51,712.00",Property related costs
MOJ,HMCTS,01/09/2020,CA - PREPAYMENTS (NON-PFI) - Rates Prepayment Control,Sevenoaks - Magistrates,SEVENOAKS DISTRICT COUNCIL,3018587/2020-21,"52,736.00",Property related costs
MOJ,HMCTS,01/09/2020,CA - PREPAYMENTS (NON-PFI) - Rates Prepayment Control,Amersham - Magistrates,CHILTERN DISTRICT COUNCIL,816531/2020-21,"52,736.00",Property related costs
MOJ,HMCTS,01/09/2020,CA - PREPAYMENTS (NON-PFI) - Rates Prepayment Control,Maidstone - Magistrates,MAIDSTONE BOROUGH COUNCIL,3159313/2020-21,"54,272.00",Property related costs
MOJ,HMCTS,01/09/2020,CA - PREPAYMENTS (NON-PFI) - Rates Prepayment Control,Birmingham ETS,BIRMINGHAM CITY COUNCIL,6005802453/2020-21,"54,784.00",Property related costs
MOJ,HMCTS,01/09/2020,CA - PREPAYMENTS (NON-PFI) - Rates Prepayment Control,Birmingham ETS,BIRMINGHAM CITY COUNCIL,6005014317/2020-21,"54,784.00",Property related costs
MOJ,HMCTS,01/09/2020,CA - PREPAYMENTS (NON-PFI) - Rates Prepayment Control,Birmingham ETS,BIRMINGHAM CITY COUNCIL,6005802442/2020-21,"54,784.00",Property related costs
MOJ,HMCTS,01/09/2020,CA - PREPAYMENTS (NON-PFI) - Rates Prepayment Control,Aldershot - Magistrates,RUSHMOOR BOROUGH COUNCIL,91111528/2020-21,"55,288.70",Property related costs
MOJ,HMCTS,01/09/2020,CA - PREPAYMENTS (NON-PFI) - Rates Prepayment Control,Edmonton - County,LONDON BOROUGH OF ENFIELD,41577031/2020-21,"56,320.00",Property related costs
MOJ,HMCTS,01/09/2020,CA - PREPAYMENTS (NON-PFI) - Rates Prepayment Control,Banbury - Magistrates,CHERWELL DISTRICT COUNCIL,3374485/2020-21,"58,187.23",Property related costs
MOJ,HMCTS,01/09/2020,CA - PREPAYMENTS (NON-PFI) - Rates Prepayment Control,Carlisle - Magistrates,CARLISLE CITY COUNCIL,108059341/2020-21,"58,368.00",Property related costs
MOJ,HMCTS,01/09/2020,CA - PREPAYMENTS (NON-PFI) - Rates Prepayment Control,Enf - North East Region,LEEDS CITY COUNCIL,900576645/2020-21,"58,368.00",Property related costs
MOJ,HMCTS,01/09/2020,CA - PREPAYMENTS (NON-PFI) - Rates Prepayment Control,Leicester ETS,LEICESTER CITY COUNCIL,8001462508/2020-21,"59,392.00",Property related costs
MOJ,HMCTS,01/09/2020,CA - PREPAYMENTS (NON-PFI) - Rates Prepayment Control,Blackburn - Magistrates,BLACKBURN WITH DARWIN BOROUGH COUNCIL,5000098588/2020-21,"59,904.00",Property related costs
MOJ,HMCTS,01/09/2020,CA - PREPAYMENTS (NON-PFI) - Rates Prepayment Control,Scarborough - Magistrates,SCARBOROUGH BOROUGH COUNCIL,7000666771/2020-21,"61,440.00",Property related costs
MOJ,HMCTS,01/09/2020,CA - PREPAYMENTS (NON-PFI) - Rates Prepayment Control,Milton Keynes - County,MILTON KEYNES COUNCIL,69002539759/2020-21,"61,952.00",Property related costs
MOJ,HMCTS,01/09/2020,CA - PREPAYMENTS (NON-PFI) - Rates Prepayment Control,Lincoln Crown Court (Castle) - Crown,LINCOLN CITY COUNCIL,30171024/2020-21,"61,952.00",Property related costs
MOJ,HMCTS,01/09/2020,CA - PREPAYMENTS (NON-PFI) - Rates Prepayment Control,Walsall - County 1,WALSALL COUNCIL,51993871/2020-21,"64,512.00",Property related costs
MOJ,HMCTS,01/09/2020,CA - PREPAYMENTS (NON-PFI) - Rates Prepayment Control,Newcastle Upon Tyne Combined (Moot Hall) - Crown,NEWCASTLE CITY COUNCIL,6934554619/2020-21,"65,536.00",Property related costs
MOJ,HMCTS,01/09/2020,CA - PREPAYMENTS (NON-PFI) - Rates Prepayment Control,Ashford ETS,ASHFORD BOROUGH COUNCIL,7329988/2020-21,"66,048.00",Property related costs
MOJ,HMCTS,01/09/2020,CA - PREPAYMENTS (NON-PFI) - Rates Prepayment Control,Maidenhead - Magistrates,ROYAL BOROUGH OF WINDSOR AND MAIDENHEAD,700143383/2020-21,"67,072.00",Property related costs
MOJ,HMCTS,01/09/2020,CA - PREPAYMENTS (NON-PFI) - Rates Prepayment Control,Birmingham (Youth Court) - Magistrates,BIRMINGHAM CITY COUNCIL,6003620191/2020-21,"68,096.00",Property related costs
MOJ,HMCTS,01/09/2020,CA - PREPAYMENTS (NON-PFI) - Rates Prepayment Control,Durham Crown Court,DURHAM COUNTY COUNCIL,5600148425/2020-21,"68,542.83",Property related costs
MOJ,HMCTS,01/09/2020,CA - PREPAYMENTS (NON-PFI) - Rates Prepayment Control,Brentford - County,LONDON BOROUGH OF HOUNSLOW,921261559/2020-21,"68,628.00",Property related costs
MOJ,HMCTS,01/09/2020,CA - PREPAYMENTS (NON-PFI) - Rates Prepayment Control,Llanelli - Magistrates,CARMARTHENSHIRE COUNTY COUNCIL,800076424/2020-21,"69,015.00",Property related costs
MOJ,HMCTS,01/09/2020,CA - PREPAYMENTS (NON-PFI) - Rates Prepayment Control,Gloucester Court Centre - Crown,GLOUCESTER CITY COUNCIL,0600224893/2020-21,"69,120.00",Property related costs
MOJ,HMCTS,01/09/2020,CA - PREPAYMENTS (NON-PFI) - Rates Prepayment Control,Huddersfield - County,KIRKLEES COUNCIL,967401506/2020-21,"71,168.00",Property related costs
MOJ,HMCTS,01/09/2020,CA - PREPAYMENTS (NON-PFI) - Rates Prepayment Control,Workington - Magistrates,ALLERDALE BOROUGH COUNCIL,51710538/2020-21,"72,704.00",Property related costs
MOJ,HMCTS,01/09/2020,CA - PREPAYMENTS (NON-PFI) - Rates Prepayment Control,Ealing - Magistrates,LONDON BOROUGH OF EALING,2417783/2020-21,"72,884.00",Property related costs
MOJ,HMCTS,01/09/2020,CA - PREPAYMENTS (NON-PFI) - Rates Prepayment Control,King's Lynn - Magistrates,BOROUGH COUNCIL OF KINGS LYNN & WEST NORFOLK,7310893/2020-21,"74,240.00",Property related costs
MOJ,HMCTS,01/09/2020,CA - PREPAYMENTS (NON-PFI) - Rates Prepayment Control,Watford - County,WATFORD BOROUGH COUNCIL,300877674/2020-21,"74,240.00",Property related costs
MOJ,HMCTS,01/09/2020,CA - PREPAYMENTS (NON-PFI) - Rates Prepayment Control,Willesden - County,LONDON BOROUGH OF BRENT,32034103/2020-21,"76,076.00",Property related costs
MOJ,HMCTS,01/09/2020,CA - PREPAYMENTS (NON-PFI) - Rates Prepayment Control,Aberystwyth - Magistrates,CEREDIGION COUNTY COUNCIL,100989717/2020-21,"77,040.00",Property related costs
MOJ,HMCTS,01/09/2020,CA - PREPAYMENTS (NON-PFI) - Rates Prepayment Control,Uxbridge - County,LONDON BOROUGH OF HILLINGDON,500095941/2020-21,"77,672.00",Property related costs
MOJ,HMCTS,01/09/2020,CA - PREPAYMENTS (NON-PFI) - Rates Prepayment Control,Bury St Edmunds - County,ST EDMUNDSBURY BOROUGH COUNCIL,23028162/2020-21,"77,824.00",Property related costs
MOJ,HMCTS,01/09/2020,CA - PREPAYMENTS (NON-PFI) - Rates Prepayment Control,Hertford - Magistrates,EAST HERTFORDSHIRE DISTRICT COUNCIL,101577623/2020-21,"78,336.00",Property related costs
MOJ,HMCTS,01/09/2020,CA - PREPAYMENTS (NON-PFI) - Rates Prepayment Control,Newcastle Upon Tyne - Magistrates,NEWCASTLE CITY COUNCIL,6960949719/2020-21,"79,360.00",Property related costs
MOJ,HMCTS,01/09/2020,CA - PREPAYMENTS (NON-PFI) - Rates Prepayment Control,Swansea - County 2,THE CITY & COUNTY OF SWANSEA,90247235/2020-21,"81,855.00",Property related costs
MOJ,HMCTS,01/09/2020,CA - PREPAYMENTS (NON-PFI) - Rates Prepayment Control,Canterbury - Magistrates,CANTERBURY CITY COUNCIL,21730441/2020-21,"81,920.00",Property related costs
MOJ,HMCTS,01/09/2020,CA - PREPAYMENTS (NON-PFI) - Rates Prepayment Control,Crawley - Magistrates,CRAWLEY BOROUGH COUNCIL,871155434/2020-21,"82,944.00",Property related costs
MOJ,HMCTS,01/09/2020,CA - PREPAYMENTS (NON-PFI) - Rates Prepayment Control,Wrexham- Magistrates,WREXHAM COUNTY BOROUGH COUNCIL,54096170/2020-21,"83,460.00",Property related costs
MOJ,HMCTS,01/09/2020,CA - PREPAYMENTS (NON-PFI) - Rates Prepayment Control,Harrogate - Magistrates,HARROGATE BOROUGH COUNCIL,60000754997/2020-21,"83,968.00",Property related costs
MOJ,HMCTS,01/09/2020,CA - PREPAYMENTS (NON-PFI) - Rates Prepayment Control,St Helens  - County,ST HELENS COUNCIL,301820772/2020-21,"84,992.00",Property related costs
MOJ,HMCTS,01/09/2020,CA - PREPAYMENTS (NON-PFI) - Rates Prepayment Control,Lancaster - Magistrates,LANCASTER CITY COUNCIL,101789372/2020-21,"85,504.00",Property related costs
MOJ,HMCTS,01/09/2020,CA - PREPAYMENTS (NON-PFI) - Rates Prepayment Control,Birmingham (Newton Street)  -  Magistrates,BIRMINGHAM CITY COUNCIL,6003621172/2020-21,"87,552.00",Property related costs
MOJ,HMCTS,01/09/2020,CA - PREPAYMENTS (NON-PFI) - Rates Prepayment Control,HQ Employment Tribunals,LONDON BOROUGH OF CAMDEN,68482284/2020-21,"88,312.00",Property related costs
MOJ,HMCTS,01/09/2020,CA - PREPAYMENTS (NON-PFI) - Rates Prepayment Control,Weymouth - Magistrates,WEYMOUTH & PORTLAND BOROUGH COUNCIL,100882953/2020-21,"91,648.00",Property related costs
MOJ,HMCTS,01/09/2020,CA - PREPAYMENTS (NON-PFI) - Rates Prepayment Control,Newton Aycliffe - Magistrates,DURHAM COUNTY COUNCIL,5700056681/2020-21,"92,160.00",Property related costs
MOJ,HMCTS,01/09/2020,CA - PREPAYMENTS (NON-PFI) - Rates Prepayment Control,Hartlepool - Magistrates,HARTLEPOOL BOROUGH COUNCIL,905026896X/2020-21,"92,672.00",Property related costs
MOJ,HMCTS,01/09/2020,CA - PREPAYMENTS (NON-PFI) - Rates Prepayment Control,Kingston-Upon-Thames - County,ROYAL BOROUGH OF KINGSTON UPON THAMES,1251490/2020-21,"93,100.00",Property related costs
MOJ,HMCTS,01/09/2020,CA - PREPAYMENTS (NON-PFI) - Rates Prepayment Control,Crewe - Magistrates,CHESHIRE EAST COUNCIL,91074891/2020-21,"93,184.00",Property related costs
MOJ,HMCTS,01/09/2020,CA - PREPAYMENTS (NON-PFI) - Rates Prepayment Control,Blackpool - Magistrates,BLACKPOOL COUNCIL,23752724/2020-21,"99,840.00",Property related costs
MOJ,HMCTS,01/09/2020,CA - PREPAYMENTS (NON-PFI) - Rates Prepayment Control,Cannock - Magistrates,CANNOCK CHASE DISTRICT COUNCIL,101088086/2020-21,"100,864.00",Property related costs
MOJ,HMCTS,01/09/2020,CA - PREPAYMENTS (NON-PFI) - Rates Prepayment Control,Huddersfield - Magistrates,KIRKLEES COUNCIL,968688188/2020-21,"101,376.00",Property related costs
MOJ,HMCTS,01/09/2020,CA - PREPAYMENTS (NON-PFI) - Rates Prepayment Control,Brighton - County,BRIGHTON & HOVE CITY COUNCIL,35468157/2020-21,"101,888.00",Property related costs
MOJ,HMCTS,01/09/2020,CA - PREPAYMENTS (NON-PFI) - Rates Prepayment Control,Bromley  (Court House) County,LONDON BOROUGH OF BROMLEY,7117595611/2020-21,"102,144.00",Property related costs
MOJ,HMCTS,01/09/2020,CA - PREPAYMENTS (NON-PFI) - Rates Prepayment Control,HQ Employment Tribunals,LONDON BOROUGH OF CAMDEN,68305680/2020-21,"103,740.00",Property related costs
MOJ,HMCTS,01/09/2020,CA - PREPAYMENTS (NON-PFI) - Rates Prepayment Control,Swansea - Magistrates,THE CITY & COUNTY OF SWANSEA,90265945/2020-21,"103,790.00",Property related costs
MOJ,HMCTS,01/09/2020,CA - PREPAYMENTS (NON-PFI) - Rates Prepayment Control,Salford BC,SALFORD CITY COUNCIL,62643001/2020-21,"104,960.00",Property related costs
MOJ,HMCTS,01/09/2020,CA - PREPAYMENTS (NON-PFI) - Rates Prepayment Control,Preston - Magistrates,PRESTON CITY COUNCIL,70214877/2020-21,"106,496.00",Property related costs
MOJ,HMCTS,01/09/2020,CA - PREPAYMENTS (NON-PFI) - Rates Prepayment Control,Gloucester Family Court - County,GLOUCESTER CITY COUNCIL,0600207269/2020-21,"108,544.00",Property related costs
MOJ,HMCTS,01/09/2020,CA - PREPAYMENTS (NON-PFI) - Rates Prepayment Control,Truro - Magistrates,CORNWALL COUNCIL - CARRICK DIVISION,802012083/2020-21,"108,544.00",Property related costs
MOJ,HMCTS,01/09/2020,CA - PREPAYMENTS (NON-PFI) - Rates Prepayment Control,Preston (Hearings)  -  Crown,PRESTON CITY COUNCIL,70152351/2020-21,"109,056.00",Property related costs
MOJ,HMCTS,01/09/2020,CA - PREPAYMENTS (NON-PFI) - Rates Prepayment Control,Brighton Family Centre - Family,BRIGHTON & HOVE CITY COUNCIL,35475951/2020-21,"112,128.00",Property related costs
MOJ,HMCTS,01/09/2020,CA - PREPAYMENTS (NON-PFI) - Rates Prepayment Control,Swindon - Magistrates,SWINDON BOROUGH COUNCIL,30306493/2020-21,"115,200.00",Property related costs
MOJ,HMCTS,01/09/2020,CA - PREPAYMENTS (NON-PFI) - Rates Prepayment Control,Aylesbury -Magistrates,AYLESBURY VALE DISTRICT COUNCIL,1013915/2020-21,"115,712.00",Property related costs
MOJ,HMCTS,01/09/2020,CA - PREPAYMENTS (NON-PFI) - Rates Prepayment Control,Basildon - Magistrates,BASILDON BOROUGH COUNCIL,1700328853/2020-21,"115,712.00",Property related costs
MOJ,HMCTS,01/09/2020,CA - PREPAYMENTS (NON-PFI) - Rates Prepayment Control,Redditch - Magistrates,REDDITCH BOROUGH COUNCIL,3000019387/2020-21,"116,736.00",Property related costs
MOJ,HMCTS,01/09/2020,CA - PREPAYMENTS (NON-PFI) - Rates Prepayment Control,Taunton Combined Court  - Shared Costs,TAUNTON DEANE BOROUGH COUNCIL,8000089954/2020-21,"118,125.00",Property related costs
MOJ,HMCTS,01/09/2020,CA - PREPAYMENTS (NON-PFI) - Rates Prepayment Control,Leeds Civil Hearing Centre  -  County,LEEDS CITY COUNCIL,900278562/2020-21,"118,388.98",Property related costs
MOJ,HMCTS,01/09/2020,CA - PREPAYMENTS (NON-PFI) - Rates Prepayment Control,Horsham - Magistrates,HORSHAM DISTRICT COUNCIL,6049894/2020-21,"119,296.00",Property related costs
MOJ,HMCTS,01/09/2020,CA - PREPAYMENTS (NON-PFI) - Rates Prepayment Control,City of London - Magistrates Court,CITY OF LONDON,20986665/2020-21,"119,340.00",Property related costs
MOJ,HMCTS,01/09/2020,CA - PREPAYMENTS (NON-PFI) - Rates Prepayment Control,Birkenhead - Magistrates,METROPOLITAN BOROUGH OF WIRRAL,700301313/2020-21,"120,320.00",Property related costs
MOJ,HMCTS,01/09/2020,CA - PREPAYMENTS (NON-PFI) - Rates Prepayment Control,Oxford - Magistrates,OXFORD CITY COUNCIL,703508511/2020-21,"120,832.00",Property related costs
MOJ,HMCTS,01/09/2020,CA - PREPAYMENTS (NON-PFI) - Rates Prepayment Control,Barrow in Furness - Magistrates,BOROUGH OF BARROW IN FURNESS,50000111150/2020-21,"120,832.00",Property related costs
MOJ,HMCTS,01/09/2020,CA - PREPAYMENTS (NON-PFI) - Rates Prepayment Control,Chester - Magistrates,CHESHIRE WEST CHESTER COUNCIL,600210740/2020-21,"121,856.00",Property related costs
MOJ,HMCTS,01/09/2020,CA - PREPAYMENTS (NON-PFI) - Rates Prepayment Control,Newcastle under Lyme - Magistrates,NEWCASTLE UNDER LYME BOROUGH COUNCIL,609839814/2020-21,"121,856.00",Property related costs
MOJ,HMCTS,01/09/2020,CA - PREPAYMENTS (NON-PFI) - Rates Prepayment Control,Bolton AS,LEEDS CITY COUNCIL,90066892X/2020-21,"122,961.05",Property related costs
MOJ,HMCTS,01/09/2020,CA - PREPAYMENTS (NON-PFI) - Rates Prepayment Control,Ipswich - Magistrates,IPSWICH BOROUGH COUNCIL,721930217/2020-21,"123,392.00",Property related costs
MOJ,HMCTS,01/09/2020,CA - PREPAYMENTS (NON-PFI) - Rates Prepayment Control,Taunton - Magistrates,TAUNTON DEANE BOROUGH COUNCIL,8000025743/2020-21,"124,425.00",Property related costs
MOJ,HMCTS,01/09/2020,CA - PREPAYMENTS (NON-PFI) - Rates Prepayment Control,Watford (London N) ETS,WATFORD BOROUGH COUNCIL,300942321/2020-21,"128,000.00",Property related costs
MOJ,HMCTS,01/09/2020,CA - PREPAYMENTS (NON-PFI) - Rates Prepayment Control,Worthing - Magistrates,WORTHING BOROUGH COUNCIL,101353915/2020-21,"129,279.50",Property related costs
MOJ,HMCTS,01/09/2020,CA - PREPAYMENTS (NON-PFI) - Rates Prepayment Control,Reading - County,READING BOROUGH COUNCIL,51272217/2020-21,"129,280.00",Property related costs
MOJ,HMCTS,01/09/2020,CA - PREPAYMENTS (NON-PFI) - Rates Prepayment Control,Walsall (Stafford Street) - Magistrates,WALSALL COUNCIL,54419941/2020-21,"129,280.00",Property related costs
MOJ,HMCTS,01/09/2020,CA - PREPAYMENTS (NON-PFI) - Rates Prepayment Control,Central Budgets & Newcastle Region AS,NEWCASTLE CITY COUNCIL,6998276720/2020-21,"130,825.68",Property related costs
MOJ,HMCTS,01/09/2020,CA - PREPAYMENTS (NON-PFI) - Rates Prepayment Control,Basingstoke - Magistrates,BASINGSTOKE & DEANE BOROUGH COUNCIL,52036578/2020-21,"131,840.00",Property related costs
MOJ,HMCTS,01/09/2020,CA - PREPAYMENTS (NON-PFI) - Rates Prepayment Control,Wolverhampton - Magistrates,WOLVERHAMPTON CITY COUNCIL,51149784/2020-21,"135,680.00",Property related costs
MOJ,HMCTS,01/09/2020,CA - PREPAYMENTS (NON-PFI) - Rates Prepayment Control,Plymouth Combined  Court - Shared Costs,PLYMOUTH CITY COUNCIL,79022405/2020-21,"136,960.00",Property related costs
MOJ,HMCTS,01/09/2020,CA - PREPAYMENTS (NON-PFI) - Rates Prepayment Control,St Albans - Magistrates,ST ALBANS CITY & DISTRICT COUNCIL,9046258/2020-21,"138,240.00",Property related costs
MOJ,HMCTS,01/09/2020,CA - PREPAYMENTS (NON-PFI) - Rates Prepayment Control,Burnley Combined Court - Shared Costs,BURNLEY BOROUGH COUNCIL,930116210/2020-21,"138,240.00",Property related costs
MOJ,HMCTS,01/09/2020,CA - PREPAYMENTS (NON-PFI) - Rates Prepayment Control,Bedlington - Magistrates,NORTHUMBERLAND COUNTY COUNCIL,2785004148/2020-21,"139,520.00",Property related costs
MOJ,HMCTS,01/09/2020,CA - PREPAYMENTS (NON-PFI) - Rates Prepayment Control,Shrewsbury - Magistrates,SHROPSHIRE COUNCIL,2500000316187/2020-21,"140,800.00",Property related costs
MOJ,HMCTS,01/09/2020,CA - PREPAYMENTS (NON-PFI) - Rates Prepayment Control,Portsmouth - Magistrates,PORTSMOUTH CITY COUNCIL,200028697/2020-21,"140,800.00",Property related costs
MOJ,HMCTS,01/09/2020,CA - PREPAYMENTS (NON-PFI) - Rates Prepayment Control,Grimsby - Magistrates,NORTH EAST LINCOLNSHIRE COUNCIL,4404045332/2020-21,"142,080.00",Property related costs
MOJ,HMCTS,01/09/2020,CA - PREPAYMENTS (NON-PFI) - Rates Prepayment Control,Doncaster - Magistrates,DONCASTER MBC,9231660839/2020-21,"143,360.00",Property related costs
MOJ,HMCTS,01/09/2020,CA - PREPAYMENTS (NON-PFI) - Rates Prepayment Control,North Shields AIT,NORTH TYNESIDE COUNCIL,1911681673/2020-21,"143,360.00",Property related costs
MOJ,HMCTS,01/09/2020,CA - PREPAYMENTS (NON-PFI) - Rates Prepayment Control,Great Yarmouth - Magistrates,GREAT YARMOUTH BOROUGH COUNCIL,7700321629/2020-21,"145,920.00",Property related costs
MOJ,HMCTS,01/09/2020,CA - PREPAYMENTS (NON-PFI) - Rates Prepayment Control,North Tyneside- Magistrates,NORTH TYNESIDE COUNCIL,1911149316/2020-21,"145,920.00",Property related costs
MOJ,HMCTS,01/09/2020,CA - PREPAYMENTS (NON-PFI) - Rates Prepayment Control,Hove - Crown,BRIGHTON & HOVE CITY COUNCIL,35468270/2020-21,"147,200.00",Property related costs
MOJ,HMCTS,01/09/2020,CA - PREPAYMENTS (NON-PFI) - Rates Prepayment Control,Hereford (Bath Street) - Magistrates,HEREFORDSHIRE COUNCIL,86516068/2020-21,"148,480.00",Property related costs
MOJ,HMCTS,01/09/2020,CA - PREPAYMENTS (NON-PFI) - Rates Prepayment Control,Telford - Magistrates,TELFORD & WREKIN COUNCIL,80215543/2020-21,"149,760.00",Property related costs
MOJ,HMCTS,01/09/2020,CA - PREPAYMENTS (NON-PFI) - Rates Prepayment Control,Chester - County,CHESHIRE WEST CHESTER COUNCIL,600184083/2020-21,"149,760.00",Property related costs
MOJ,HMCTS,01/09/2020,CA - PREPAYMENTS (NON-PFI) - Rates Prepayment Control,Staines - Magistrates,SPELTHORNE BOROUGH COUNCIL,101265472/2020-21,"156,160.31",Property related costs
MOJ,HMCTS,01/09/2020,CA - PREPAYMENTS (NON-PFI) - Rates Prepayment Control,Bootle - Magistrates,SEFTON METROPOLITAN BOROUGH COUNCIL,74030716/2020-21,"157,440.00",Property related costs
MOJ,HMCTS,01/09/2020,CA - PREPAYMENTS (NON-PFI) - Rates Prepayment Control,Chester Crown Court - Crown,CHESHIRE WEST CHESTER COUNCIL,600166593/2020-21,"157,440.00",Property related costs
MOJ,HMCTS,01/09/2020,CA - PREPAYMENTS (NON-PFI) - Rates Prepayment Control,Bexley - Magistrates Court,LONDON BOROUGH OF BEXLEY,958026958/2020-21,"160,930.00",Property related costs
MOJ,HMCTS,01/09/2020,CA - PREPAYMENTS (NON-PFI) - Rates Prepayment Control,Uxbridge - Magistrates,LONDON BOROUGH OF HILLINGDON,500222854/2020-21,"160,930.00",Property related costs
MOJ,HMCTS,01/09/2020,CA - PREPAYMENTS (NON-PFI) - Rates Prepayment Control,Bath - Magistrates,BATH & NORTH EAST SOMERSET COUNCIL,39079597/2020-21,"165,120.00",Property related costs
MOJ,HMCTS,01/09/2020,CA - PREPAYMENTS (NON-PFI) - Rates Prepayment Control,Cardiff Crown Court - Crown,CARDIFF COUNTY COUNCIL,10401717047/2020-21,"165,850.00",Property related costs
MOJ,HMCTS,01/09/2020,CA - PREPAYMENTS (NON-PFI) - Rates Prepayment Control,Birmingham ETS,BIRMINGHAM CITY COUNCIL,6005986678/2020-21,"166,400.00",Property related costs
MOJ,HMCTS,01/09/2020,CA - PREPAYMENTS (NON-PFI) - Rates Prepayment Control,South Tyneside - Magistrates,SOUTH TYNESIDE COUNCIL,119643X/2020-21,"167,680.00",Property related costs
MOJ,HMCTS,01/09/2020,CA - PREPAYMENTS (NON-PFI) - Rates Prepayment Control,Luton - Magistrates,LUTON BOROUGH COUNCIL,116108012/2020-21,"170,240.00",Property related costs
MOJ,HMCTS,01/09/2020,CA - PREPAYMENTS (NON-PFI) - Rates Prepayment Control,Plymouth - Magistrates,PLYMOUTH CITY COUNCIL,79013332/2020-21,"170,240.00",Property related costs
MOJ,HMCTS,01/09/2020,CA - PREPAYMENTS (NON-PFI) - Rates Prepayment Control,Bedford - Magistrates,BEDFORD BOROUGH COUNCIL,1620032394/2020-21,"175,360.00",Property related costs
MOJ,HMCTS,01/09/2020,CA - PREPAYMENTS (NON-PFI) - Rates Prepayment Control,Swindon Combined Court - Shared Costs,SWINDON BOROUGH COUNCIL,30181453/2020-21,"175,360.00",Property related costs
MOJ,HMCTS,01/09/2020,CA - PREPAYMENTS (NON-PFI) - Rates Prepayment Control,Stoke AIT,CITY OF STOKE ON TRENT,53227501/2020-21,"175,360.00",Property related costs
MOJ,HMCTS,01/09/2020,CA - PREPAYMENTS (NON-PFI) - Rates Prepayment Control,Redbridge - Magistrates,LONDON BOROUGH OF REDBRIDGE,333607413/2020-21,"176,890.00",Property related costs
MOJ,HMCTS,01/09/2020,CA - PREPAYMENTS (NON-PFI) - Rates Prepayment Control,Norwich - Magistrates,NORWICH CITY COUNCIL,6016764/2020-21,"179,200.00",Property related costs
MOJ,HMCTS,01/09/2020,CA - PREPAYMENTS (NON-PFI) - Rates Prepayment Control,Lewes Combined Court Centre,LEWES DISTRICT COUNCIL,101223265/2020-21,"184,320.00",Property related costs
MOJ,HMCTS,01/09/2020,CA - PREPAYMENTS (NON-PFI) - Rates Prepayment Control,Hatton Cross AIT,LONDON BOROUGH OF HOUNSLOW,921330448/2020-21,"184,870.00",Property related costs
MOJ,HMCTS,01/09/2020,CA - PREPAYMENTS (NON-PFI) - Rates Prepayment Control,Wycombe - Magistrates,WYCOMBE DISTRICT COUNCIL,1000382873/2020-21,"188,160.00",Property related costs
MOJ,HMCTS,01/09/2020,CA - PREPAYMENTS (NON-PFI) - Rates Prepayment Control,Croydon (London S) ETS,LONDON BOROUGH OF CROYDON,42646831/2020-21,"191,520.00",Property related costs
MOJ,HMCTS,01/09/2020,CA - PREPAYMENTS (NON-PFI) - Rates Prepayment Control,Warrington Combined Court - shared Costs,WARRINGTON BOROUGH COUNCIL,10233667249/2020-21,"192,000.00",Property related costs
MOJ,HMCTS,01/09/2020,CA - PREPAYMENTS (NON-PFI) - Rates Prepayment Control,Chelmsford (Osprey House) - Magistrates,CHELMSFORD BOROUGH COUNCIL,700149967/2020-21,"192,343.15",Property related costs
MOJ,HMCTS,01/09/2020,CA - PREPAYMENTS (NON-PFI) - Rates Prepayment Control,Cambridge - Magistrates,CAMBRIDGE CITY COUNCIL,31432294/2020-21,"193,280.00",Property related costs
MOJ,HMCTS,01/09/2020,CA - PREPAYMENTS (NON-PFI) - Rates Prepayment Control,Southend on Sea - Magistrates,SOUTHEND-ON-SEA BOROUGH COUNCIL,71197363/2020-21,"198,400.00",Property related costs
MOJ,HMCTS,01/09/2020,CA - PREPAYMENTS (NON-PFI) - Rates Prepayment Control,Chatham - Magistrates,MEDWAY COUNCIL,11969219/2020-21,"199,680.00",Property related costs
MOJ,HMCTS,01/09/2020,CA - PREPAYMENTS (NON-PFI) - Rates Prepayment Control,East London Family Court,LONDON BOROUGH OF TOWER HAMLETS,65900710/2020-21,"202,160.00",Property related costs
MOJ,HMCTS,01/09/2020,CA - PREPAYMENTS (NON-PFI) - Rates Prepayment Control,Doncaster - Magistrates,DONCASTER MBC,9049290019/2020-21,"202,240.00",Property related costs
MOJ,HMCTS,01/09/2020,CA - PREPAYMENTS (NON-PFI) - Rates Prepayment Control,Newport (Isle of Wight) Combined (Quay Street)-Shared Costs,ISLE OF WIGHT COUNCIL,7023131X/2020-21,"204,800.00",Property related costs
MOJ,HMCTS,01/09/2020,CA - PREPAYMENTS (NON-PFI) - Rates Prepayment Control,Swansea (St Helens Road) - Crown,THE CITY & COUNTY OF SWANSEA,90247191/2020-21,"207,312.50",Property related costs
MOJ,HMCTS,01/09/2020,CA - PREPAYMENTS (NON-PFI) - Rates Prepayment Control,Hastings - Magistrates,HASTINGS BOROUGH COUNCIL,30000000349473/2020-21,"207,360.00",Property related costs
MOJ,HMCTS,01/09/2020,CA - PREPAYMENTS (NON-PFI) - Rates Prepayment Control,Manchester ETS,MANCHESTER CITY COUNCIL,700464548/2020-21,"209,920.00",Property related costs
MOJ,HMCTS,01/09/2020,CA - PREPAYMENTS (NON-PFI) - Rates Prepayment Control,Worcester (Castle St) - Magistrates,WORCESTER CITY COUNCIL,620020147/2020-21,"210,107.08",Property related costs
MOJ,HMCTS,01/09/2020,CA - PREPAYMENTS (NON-PFI) - Rates Prepayment Control,Guildford Crown Court,GUILDFORD BOROUGH COUNCIL,X1000054119/2020-21,"213,760.00",Property related costs
MOJ,HMCTS,01/09/2020,CA - PREPAYMENTS (NON-PFI) - Rates Prepayment Control,Peterborough Combined Court - Shared Costs,PETERBOROUGH CITY COUNCIL,101968711/2020-21,"217,600.00",Property related costs
MOJ,HMCTS,01/09/2020,CA - PREPAYMENTS (NON-PFI) - Rates Prepayment Control,Cardiff - County,CARDIFF COUNTY COUNCIL,10401722243/2020-21,"218,012.50",Property related costs
MOJ,HMCTS,01/09/2020,CA - PREPAYMENTS (NON-PFI) - Rates Prepayment Control,Stockport  -  Magistrates,STOCKPORT METROPOLITAN BOROUGH COUNCIL,9300004093/2020-21,"219,187.50",Property related costs
MOJ,HMCTS,01/09/2020,CA - PREPAYMENTS (NON-PFI) - Rates Prepayment Control,Hatton Cross AIT,LONDON BOROUGH OF HOUNSLOW,921262697/2020-21,"219,450.00",Property related costs
MOJ,HMCTS,01/09/2020,CA - PREPAYMENTS (NON-PFI) - Rates Prepayment Control,Barnet - County,LONDON BOROUGH OF BARNET,72058051/2020-21,"219,450.00",Property related costs
MOJ,HMCTS,01/09/2020,CA - PREPAYMENTS (NON-PFI) - Rates Prepayment Control,Worcester Combined Court  - County,WORCESTER CITY COUNCIL,601618132/2020-21,"221,440.00",Property related costs
MOJ,HMCTS,01/09/2020,CA - PREPAYMENTS (NON-PFI) - Rates Prepayment Control,Reading - Magistrates,READING BOROUGH COUNCIL,51753480/2020-21,"225,280.00",Property related costs
MOJ,HMCTS,01/09/2020,CA - PREPAYMENTS (NON-PFI) - Rates Prepayment Control,Caernarfor Crown Court - Crown,CYNGOR GWYNEDD COUNCIL,130189383/2020-21,"228,712.50",Property related costs
MOJ,HMCTS,01/09/2020,CA - PREPAYMENTS (NON-PFI) - Rates Prepayment Control,Bradford - Magistrates,BRADFORD METROPOLITAN BOROUGH COUNCIL,31016170/2020-21,"232,960.00",Property related costs
MOJ,HMCTS,01/09/2020,CA - PREPAYMENTS (NON-PFI) - Rates Prepayment Control,Brighton - Magistrates,BRIGHTON & HOVE CITY COUNCIL,35584130/2020-21,"234,240.00",Property related costs
MOJ,HMCTS,01/09/2020,CA - PREPAYMENTS (NON-PFI) - Rates Prepayment Control,Great Grimsby Combined Court - County,NORTH EAST LINCOLNSHIRE COUNCIL,4400196892/2020-21,"236,800.00",Property related costs
MOJ,HMCTS,01/09/2020,CA - PREPAYMENTS (NON-PFI) - Rates Prepayment Control,Guildford - Magistrates,GUILDFORD BOROUGH COUNCIL,X1000054119A/2020-21,"238,080.00",Property related costs
MOJ,HMCTS,01/09/2020,CA - PREPAYMENTS (NON-PFI) - Rates Prepayment Control,Wigan - Magistrates,WIGAN COUNCIL,570001778005/2020-21,"239,360.00",Property related costs
MOJ,HMCTS,01/09/2020,CA - PREPAYMENTS (NON-PFI) - Rates Prepayment Control,Merthyr Tydfil - Magistrates,MERTHYR TYDFIL COUNTY BOROUGH COUNCIL,10818037/2020-21,"239,412.50",Property related costs
MOJ,HMCTS,01/09/2020,CA - PREPAYMENTS (NON-PFI) - Rates Prepayment Control,Truro Combined Court Centre - Shared Costs,CORNWALL COUNCIL - CARRICK DIVISION,802065110/2020-21,"247,027.72",Property related costs
MOJ,HMCTS,01/09/2020,CA - PREPAYMENTS (NON-PFI) - Rates Prepayment Control,Hendon - Magistrates,LONDON BOROUGH OF BARNET,74064971/2020-21,"250,040.00",Property related costs
MOJ,HMCTS,01/09/2020,CA - PREPAYMENTS (NON-PFI) - Rates Prepayment Control,Loughborough - Magistrates,CHARNWOOD BOROUGH COUNCIL,96179222/2020-21,"253,440.00",Property related costs
MOJ,HMCTS,01/09/2020,CA - PREPAYMENTS (NON-PFI) - Rates Prepayment Control,Manchester (Picadilly) AIT,MANCHESTER CITY COUNCIL,700570348/2020-21,"258,560.00",Property related costs
MOJ,HMCTS,01/09/2020,CA - PREPAYMENTS (NON-PFI) - Rates Prepayment Control,Milton Keynes - Magistrates,MILTON KEYNES COUNCIL,69001336207/2020-21,"263,680.00",Property related costs
MOJ,HMCTS,01/09/2020,CA - PREPAYMENTS (NON-PFI) - Rates Prepayment Control,Peterborough - Magistrates,PETERBOROUGH CITY COUNCIL,101989046/2020-21,"263,680.00",Property related costs
MOJ,HMCTS,01/09/2020,CA - PREPAYMENTS (NON-PFI) - Rates Prepayment Control,Mansfield (Rosemary St) - Magistrates,MANSFIELD DISTRICT COUNCIL,U30179327/2020-21,"284,160.00",Property related costs
MOJ,HMCTS,01/09/2020,CA - PREPAYMENTS (NON-PFI) - Rates Prepayment Control,Chelmsford - County,CHELMSFORD BOROUGH COUNCIL,700176766/2020-21,"286,546.60",Property related costs
MOJ,HMCTS,01/09/2020,CA - PREPAYMENTS (NON-PFI) - Rates Prepayment Control,Carlisle Combined Court - Shared Costs,CARLISLE CITY COUNCIL,108020986/2020-21,"286,720.00",Property related costs
MOJ,HMCTS,01/09/2020,CA - PREPAYMENTS (NON-PFI) - Rates Prepayment Control,Salisbury Combined Court - Shared Costs,WILTSHIRE COUNCIL,501425456000/2020-21,"289,280.00",Property related costs
MOJ,HMCTS,01/09/2020,CA - PREPAYMENTS (NON-PFI) - Rates Prepayment Control,Leicester - Magistrates,LEICESTER CITY COUNCIL,8002075143/2020-21,"302,080.00",Property related costs
MOJ,HMCTS,01/09/2020,CA - PREPAYMENTS (NON-PFI) - Rates Prepayment Control,Stafford Combined Court - Shared Costs,STAFFORD BOROUGH COUNCIL,30096057/2020-21,"304,640.00",Property related costs
MOJ,HMCTS,01/09/2020,CA - PREPAYMENTS (NON-PFI) - Rates Prepayment Control,Oxford Combined Court - Shared Costs,OXFORD CITY COUNCIL,711268315/2020-21,"322,560.00",Property related costs
MOJ,HMCTS,01/09/2020,CA - PREPAYMENTS (NON-PFI) - Rates Prepayment Control,St. Albans Crown Court,ST ALBANS CITY & DISTRICT COUNCIL,7090880/2020-21,"325,120.00",Property related costs
MOJ,HMCTS,01/09/2020,CA - PREPAYMENTS (NON-PFI) - Rates Prepayment Control,Lincoln Combined Court  - Shared Costs,LINCOLN CITY COUNCIL,30255953/2020-21,"325,120.00",Property related costs
MOJ,HMCTS,01/09/2020,CA - PREPAYMENTS (NON-PFI) - Rates Prepayment Control,Croydon - Magistrates Court 2,LONDON BOROUGH OF CROYDON,70136486/2020-21,"335,160.00",Property related costs
MOJ,HMCTS,01/09/2020,CA - PREPAYMENTS (NON-PFI) - Rates Prepayment Control,Bromley - Magistrates Court,LONDON BOROUGH OF BROMLEY,7117682962/2020-21,"335,160.00",Property related costs
MOJ,HMCTS,01/09/2020,CA - PREPAYMENTS (NON-PFI) - Rates Prepayment Control,Norwich Combined Court Centre - County,NORWICH CITY COUNCIL,905606X/2020-21,"337,920.00",Property related costs
MOJ,HMCTS,01/09/2020,CA - PREPAYMENTS (NON-PFI) - Rates Prepayment Control,Wimbledon - Magistrates,LONDON BOROUGH OF MERTON,85018701/2020-21,"340,480.00",Property related costs
MOJ,HMCTS,01/09/2020,CA - PREPAYMENTS (NON-PFI) - Rates Prepayment Control,Chelmsford (Shire Hall) - Magistrates,CHELMSFORD BOROUGH COUNCIL,70023312X/2020-21,"345,600.00",Property related costs
MOJ,HMCTS,01/09/2020,CA - PREPAYMENTS (NON-PFI) - Rates Prepayment Control,Cambridge - County,CAMBRIDGE CITY COUNCIL,3140351X/2020-21,"348,160.00",Property related costs
MOJ,HMCTS,01/09/2020,CA - PREPAYMENTS (NON-PFI) - Rates Prepayment Control,Derby Combined Court - Shared Costs,DERBY CITY COUNCIL,40164957/2020-21,"350,720.00",Property related costs
MOJ,HMCTS,01/09/2020,CA - PREPAYMENTS (NON-PFI) - Rates Prepayment Control,Luton Crown Court,LUTON BOROUGH COUNCIL,123243110/2020-21,"353,280.00",Property related costs
MOJ,HMCTS,01/09/2020,CA - PREPAYMENTS (NON-PFI) - Rates Prepayment Control,Chelmsford Crown Court,CHELMSFORD BOROUGH COUNCIL,700041225/2020-21,"358,400.00",Property related costs
MOJ,HMCTS,01/09/2020,CA - PREPAYMENTS (NON-PFI) - Rates Prepayment Control,Teesside- Magistrates,MIDDLESBOROUGH COUNCIL,903023704X/2020-21,"366,080.00",Property related costs
MOJ,HMCTS,01/09/2020,CA - PREPAYMENTS (NON-PFI) - Rates Prepayment Control,Manchester Crown Court at Minshull St - Crown,MANCHESTER CITY COUNCIL,700465152/2020-21,"366,080.00",Property related costs
MOJ,HMCTS,01/09/2020,CA - PREPAYMENTS (NON-PFI) - Rates Prepayment Control,Stoke-on-Trent Combined Court - Shared Costs,CITY OF STOKE ON TRENT,52600771/2020-21,"366,080.00",Property related costs
MOJ,HMCTS,01/09/2020,CA - PREPAYMENTS (NON-PFI) - Rates Prepayment Control,Sheffield - Magistrates,SHEFFIELD CITY COUNCIL,2002581/2020-21,"366,080.00",Property related costs
MOJ,HMCTS,01/09/2020,CA - PREPAYMENTS (NON-PFI) - Rates Prepayment Control,Colchester (Town Hall) - Magistrates,COLCHESTER BOROUGH COUNCIL,66289905/2020-21,"373,760.00",Property related costs
MOJ,HMCTS,01/09/2020,CA - PREPAYMENTS (NON-PFI) - Rates Prepayment Control,Basildon Combined Court - Shared Costs,BASILDON BOROUGH COUNCIL,1700178160/2020-21,"378,880.00",Property related costs
MOJ,HMCTS,01/09/2020,CA - PREPAYMENTS (NON-PFI) - Rates Prepayment Control,Leicester - County,LEICESTER CITY COUNCIL,8001009747/2020-21,"381,440.00",Property related costs
MOJ,HMCTS,01/09/2020,CA - PREPAYMENTS (NON-PFI) - Rates Prepayment Control,Camberwell Green - Magistrates Court,LONDON BOROUGH OF SOUTHWARK,6454562/2020-21,"412,300.00",Property related costs
MOJ,HMCTS,01/09/2020,CA - PREPAYMENTS (NON-PFI) - Rates Prepayment Control,Birmingham (Corporation St) - Magistrates,BIRMINGHAM CITY COUNCIL,6003617405/2020-21,"414,720.00",Property related costs
MOJ,HMCTS,01/09/2020,CA - PREPAYMENTS (NON-PFI) - Rates Prepayment Control,Wolverhampton Combined Court - Shared Costs,WOLVERHAMPTON CITY COUNCIL,50359278/2020-21,"422,400.00",Property related costs
MOJ,HMCTS,01/09/2020,CA - PREPAYMENTS (NON-PFI) - Rates Prepayment Control,Cardiff - Magistrates,CARDIFF COUNTY COUNCIL,10405524349/22020-21,"428,000.00",Property related costs
MOJ,HMCTS,01/09/2020,CA - PREPAYMENTS (NON-PFI) - Rates Prepayment Control,Fox Court London AS,LONDON BOROUGH OF CAMDEN,6870236X/2020-21,"441,560.00",Property related costs
MOJ,HMCTS,01/09/2020,CA - PREPAYMENTS (NON-PFI) - Rates Prepayment Control,Brent - Magistrates,LONDON BOROUGH OF BRENT,32733057/2020-21,"468,160.00",Property related costs
MOJ,HMCTS,01/09/2020,CA - PREPAYMENTS (NON-PFI) - Rates Prepayment Control,Birmingham  -  Crown,BIRMINGHAM CITY COUNCIL,6004119468/2020-21,"468,480.00",Property related costs
MOJ,HMCTS,01/09/2020,CA - PREPAYMENTS (NON-PFI) - Rates Prepayment Control,Portsmouth Combined Court - Shared Costs,PORTSMOUTH CITY COUNCIL,9688504501013/2020-21,"468,480.00",Property related costs
MOJ,HMCTS,01/09/2020,CA - PREPAYMENTS (NON-PFI) - Rates Prepayment Control,Bournemouth Combined Court  - Shared Costs,BCP,1800470716/2020-21,"471,040.00",Property related costs
MOJ,HMCTS,01/09/2020,CA - PREPAYMENTS (NON-PFI) - Rates Prepayment Control,Nottingham Court Centre - Shared Costs,NOTTINGHAM CITY COUNCIL,628883X/2020-21,"476,160.00",Property related costs
MOJ,HMCTS,01/09/2020,CA - PREPAYMENTS (NON-PFI) - Rates Prepayment Control,Leeds - Magistrates,LEEDS CITY COUNCIL,900576663/2020-21,"481,280.00",Property related costs
MOJ,HMCTS,01/09/2020,CA - PREPAYMENTS (NON-PFI) - Rates Prepayment Control,Exeter Combined Court  - Shared Costs,EXETER CITY COUNCIL,700156610/2020-21,"496,640.00",Property related costs
MOJ,HMCTS,01/09/2020,CA - PREPAYMENTS (NON-PFI) - Rates Prepayment Control,Reading Crown Court - Crown,READING BOROUGH COUNCIL,51288010/2020-21,"504,320.00",Property related costs
MOJ,HMCTS,01/09/2020,CA - PREPAYMENTS (NON-PFI) - Rates Prepayment Control,Canterbury Combined Court Centre - Shared Costs,CANTERBURY CITY COUNCIL,2120910/2020-21,"506,880.00",Property related costs
MOJ,HMCTS,01/09/2020,CA - PREPAYMENTS (NON-PFI) - Rates Prepayment Control,Wood Green Crown Court,LONDON BOROUGH OF HARINGEY,800026947/2020-21,"558,600.00",Property related costs
MOJ,HMCTS,01/09/2020,CA - PREPAYMENTS (NON-PFI) - Rates Prepayment Control,London RAP,LONDON BOROUGH OF CAMDEN,68119466/2020-21,"563,920.00",Property related costs
MOJ,HMCTS,01/09/2020,CA - PREPAYMENTS (NON-PFI) - Rates Prepayment Control,Bristol - Magistrates,BRISTOL CITY COUNCIL,5000994738219/2020-21,"568,320.00",Property related costs
MOJ,HMCTS,01/09/2020,CA - PREPAYMENTS (NON-PFI) - Rates Prepayment Control,Harrow Crown Court,LONDON BOROUGH OF HARROW,9050328659/2020-21,"574,560.00",Property related costs
MOJ,HMCTS,01/09/2020,CA - PREPAYMENTS (NON-PFI) - Rates Prepayment Control,Bristol (Greyfriars) - County,BRISTOL CITY COUNCIL,5001007568219/2020-21,"593,920.00",Property related costs
MOJ,HMCTS,01/09/2020,CA - PREPAYMENTS (NON-PFI) - Rates Prepayment Control,Preston Combined Court - Shared Costs,PRESTON CITY COUNCIL,70152422/2020-21,"609,280.00",Property related costs
MOJ,HMCTS,01/09/2020,CA - PREPAYMENTS (NON-PFI) - Rates Prepayment Control,Bradford Combined Court - Shared Costs,BRADFORD METROPOLITAN BOROUGH COUNCIL,30746850/2020-21,"619,520.00",Property related costs
MOJ,HMCTS,01/09/2020,CA - PREPAYMENTS (NON-PFI) - Rates Prepayment Control,Isleworth Crown Court,LONDON BOROUGH OF HOUNSLOW,921262545/2020-21,"627,760.00",Property related costs
MOJ,HMCTS,01/09/2020,CA - PREPAYMENTS (NON-PFI) - Rates Prepayment Control,Manchester -  Magistrates,MANCHESTER CITY COUNCIL,700162471/2020-21,"629,657.50",Property related costs
MOJ,HMCTS,01/09/2020,CA - PREPAYMENTS (NON-PFI) - Rates Prepayment Control,Leeds Combined Court - Shared Costs,LEEDS CITY COUNCIL,9002785802020-21,"645,120.00",Property related costs
MOJ,HMCTS,01/09/2020,CA - PREPAYMENTS (NON-PFI) - Rates Prepayment Control,Inner London Crown Court (Swan Street) 1,LONDON BOROUGH OF SOUTHWARK,6323494/2020-21,"675,640.00",Property related costs
MOJ,HMCTS,01/09/2020,CA - PREPAYMENTS (NON-PFI) - Rates Prepayment Control,HQ Employment Tribunals,LONDON BOROUGH OF CAMDEN,68125505/2020-21,"691,600.00",Property related costs
MOJ,HMCTS,01/09/2020,CA - PREPAYMENTS (NON-PFI) - Rates Prepayment Control,Newcastle-upon-Tyne Combined (Law Courts) - Shared Costs,NEWCASTLE CITY COUNCIL,6934505819/2020-21,"727,040.00",Property related costs
MOJ,HMCTS,01/09/2020,CA - PREPAYMENTS (NON-PFI) - Rates Prepayment Control,Bristol Crown Court - Crown,BRISTOL CITY COUNCIL,5000948444419/2020-21,"727,040.00",Property related costs
MOJ,HMCTS,01/09/2020,CA - PREPAYMENTS (NON-PFI) - Rates Prepayment Control,Maidstone Combined Court Centre - Shared Costs,MAIDSTONE BOROUGH COUNCIL,3117108/2020-21,"727,040.00",Property related costs
MOJ,HMCTS,01/09/2020,CA - PREPAYMENTS (NON-PFI) - Rates Prepayment Control,Snaresbrook Crown Court,LONDON BOROUGH OF REDBRIDGE,327731317/2020-21,"734,160.00",Property related costs
MOJ,HMCTS,01/09/2020,CA - PREPAYMENTS (NON-PFI) - Rates Prepayment Control,Teesside Combined Court - Shared Costs,MIDDLESBOROUGH COUNCIL,9030162813/2020-21,"752,640.00",Property related costs
MOJ,HMCTS,01/09/2020,CA - PREPAYMENTS (NON-PFI) - Rates Prepayment Control,Manchester (Crown Square) - Shared Costs,MANCHESTER CITY COUNCIL,700465165/2020-21,"752,640.00",Property related costs
MOJ,HMCTS,01/09/2020,CA - PREPAYMENTS (NON-PFI) - Rates Prepayment Control,Nottingham (Carrington St) - Magistrates,NOTTINGHAM CITY COUNCIL,6505817/2020-21,"769,194.46",Property related costs
MOJ,HMCTS,01/09/2020,CA - PREPAYMENTS (NON-PFI) - Rates Prepayment Control,Croydon Combined Shared Costs,LONDON BOROUGH OF CROYDON,42843061/2020-21,"782,040.00",Property related costs
MOJ,HMCTS,01/09/2020,CA - PREPAYMENTS (NON-PFI) - Rates Prepayment Control,Southampton Combined Court -  Shared Costs,SOUTHAMPTON CITY COUNCIL,521934014/2020-21,"803,840.00",Property related costs
MOJ,HMCTS,01/09/2020,CA - PREPAYMENTS (NON-PFI) - Rates Prepayment Control,Sheffield Combined Court - County,SHEFFIELD CITY COUNCIL,1840436/2020-21,"896,000.00",Property related costs
MOJ,HMCTS,01/09/2020,CA - PREPAYMENTS (NON-PFI) - Rates Prepayment Control,Blackfriars Crown Court,LONDON BOROUGH OF SOUTHWARK,6323819/2020-21,"978,880.00",Property related costs
MOJ,HMCTS,01/09/2020,CA - PREPAYMENTS (NON-PFI) - Rates Prepayment Control,Birmingham - County,BIRMINGHAM CITY COUNCIL,6004681434/2020-21,"998,400.00",Property related costs
MOJ,HMCTS,01/09/2020,CA - PREPAYMENTS (NON-PFI) - Rates Prepayment Control,Kingston-upon-Thames Crown Court,ROYAL BOROUGH OF KINGSTON UPON THAMES,1251473/2020-21,"1,026,760.00",Property related costs
MOJ,HMCTS,01/09/2020,CA - PREPAYMENTS (NON-PFI) - Rates Prepayment Control,City of Westminster Magistrates,CITY OF WESTMINSTER,402690287/2020-21,"1,138,480.00",Property related costs
MOJ,HMCTS,01/09/2020,CA - PREPAYMENTS (NON-PFI) - Rates Prepayment Control,Southwark Crown Court 2,LONDON BOROUGH OF SOUTHWARK,6323540/2020-21,"1,149,120.00",Property related costs
MOJ,HMCTS,01/09/2020,CA - PREPAYMENTS (NON-PFI) - Rates Prepayment Control,Manchester Civil Justice Centre,MANCHESTER CITY COUNCIL,700863725/2020-21,"1,868,800.00",Property related costs
MOJ,HMCTS,01/09/2020,CA - PREPAYMENTS (NON-PFI) - Rates Prepayment Control,RCJ Accommodation,CITY OF LONDON,21304310/2020-21,"4,082,400.00",Property related costs
MOJ,HMCTS,01/09/2020,CA - PREPAYMENTS (NON-PFI) - Rates Prepayment Control,RCJ Accommodation,CITY OF WESTMINSTER,400868842/2020-21,"5,298,720.00",Property related costs
MOJ,HMCTS,01/09/2020,CA - PREPAYMENTS (NON-PFI) - Rent Prepayment Control,HMCTS Estate,CORK STREET PROPERTIES LTD,42429,"2,947,929.60",Property related costs
MOJ,HMCTS,01/09/2020,EXP - PURCHASE OF GOODS/SERVICES - FM EMERGENCY WORKS,HMCTS Estate,WYG MANAGEMENT SERVICES,311522,"27,671.63",Property related costs
MOJ,HMCTS,01/09/2020,EXP - PURCHASE OF GOODS/SERVICES - OTHER PROFESSIONAL SERVICES - Research costs,Flexible Operating Hours,IFF RESEARCH LTD,14826,"83,408.40",Professional services
MOJ,HMCTS,01/09/2020,EXP - PURCHASE OF GOODS/SERVICES - OTHER PROFESSIONAL SERVICES - Research costs,Flexible Operating Hours,IFF RESEARCH LTD,15095,"83,408.40",Professional services
MOJ,HMCTS,01/09/2020,EXP - PURCHASE OF GOODS/SERVICES - SUPPORT - APPLICATION MAINTENANCE AND SUPPORT,HMCTS Digital,ENGINE PARTNERS UK LLP,ENUKPI011103,"314,820.00",Information technology costs
MOJ,HMCTS,01/09/2020,EXP - SHORT-TERM CONTRACT & AGENCY STAFF - FULL COST - Clerical and Admin,Courts and Tribunals Service Centre Project,BROOK STREET UK LTD-2WM,2.02031E+11,"1,202,207.74",Agency staff
MOJ,HMCTS,01/09/2020,PPE - POA & AUC (OWNED) - COST - ADDITIONS - BUILDINGS,HMCTS Estate,MITIE LTD,43593/92139608,"63,103.91",Property related costs
MOJ,HMCTS,02/09/2020,EXP - MISCELLANEOUS EXPENDITURE - Advocate,Supreme Courts Cost office,THE 36 GROUP LTD,GB37179652,"32,118.00",Legal services
MOJ,HMCTS,02/09/2020,EXP - PURCHASE OF GOODS/SERVICES - END USER SOFTWARE AND HARDWARE - Desktops,HMCTS Digital,VODAFONE LIMITED,4001080,"49,917.19",Information technology costs
MOJ,HMCTS,02/09/2020,EXP - PURCHASE OF GOODS/SERVICES - END USER SOFTWARE AND HARDWARE - Desktops,HMCTS Digital,VODAFONE LIMITED,4001201,"178,373.39",Information technology costs
MOJ,HMCTS,02/09/2020,EXP - PURCHASE OF GOODS/SERVICES - SUPPORT - APPLICATION MAINTENANCE AND SUPPORT,HMCTS Digital,SOLIRIUS CONSULTING LTD,2643-ARCH-DTS-002,"54,900.00",Information technology costs
MOJ,HMCTS,02/09/2020,IA - POA & AUC - COST - ADDITIONS,HMCTS Digital,CAPGEMINI UK PLC,2.60011E+12,"88,764.00",Information technology costs
MOJ,HMCTS,02/09/2020,IA - POA & AUC - COST - ADDITIONS,HMCTS Digital,CAPGEMINI UK PLC,2.60011E+12,"221,862.00",Information technology costs
MOJ,HMCTS,02/09/2020,IA - SOFTWARE LICENCES - COST - ADDITIONS,HMCTS Digital,CGI IT UK LTD,GB014044105,"26,646.44",Information technology costs
MOJ,HMCTS,02/09/2020,PPE - INFORMATION TECHNOLOGY (OWNED) - COST - ADDITIONS,HMCTS Digital,VODAFONE LIMITED,4001217,"252,146.84",Information technology costs
MOJ,HMCTS,03/09/2020,CA - OTHER RECEIVABLES - Neopost Deposit,Regional Directors Office - North West Region,QUADIENT UK LTD CONSUMABLES,GA10120688,"96,270.00",Postal servicess
MOJ,HMCTS,03/09/2020,CA - OTHER RECEIVABLES - PURCHASING CARD CONTROL ACCOUNT,BALANCE SHEET,ROYAL BANK OF SCOTLAND,5569510100360288AUG2020,"56,017.02",Settlement for purchases by Government Procurement Card
MOJ,HMCTS,03/09/2020,EXP - PURCHASE OF GOODS/SERVICES - ACCOMMODATION & BLDNG MANAGEMENT - OFFICE CLEANING,HMCTS Estate,G4S FACILITIES MANAGEMENT (UK) LTD,90386799,"393,876.59",Property related costs
MOJ,HMCTS,03/09/2020,EXP - PURCHASE OF GOODS/SERVICES - SUPPORT - APPLICATION DEVELOPMENT,HMCTS Digital,CGI IT UK LTD,GB014044113,"102,779.15",Information technology costs
MOJ,HMCTS,03/09/2020,EXP - PURCHASE OF GOODS/SERVICES - SUPPORT - APPLICATION MAINTENANCE AND SUPPORT,HMCTS Digital,PA CONSULTING SERVICES LTD,3952,"76,359.60",Information technology costs
MOJ,HMCTS,03/09/2020,EXP - PURCHASE OF GOODS/SERVICES -ACCOMM & BLDNG MGMT - MAINTENANCE & REPAIRS,HMCTS Estate,G4S FACILITIES MANAGEMENT (UK) LTD,90386801,"200,022.53",Property related costs
MOJ,HMCTS,03/09/2020,IA - POA & AUC - COST - ADDITIONS,HMCTS Digital,CGI IT UK LTD,GB014042725,"46,806.66",Information technology costs
MOJ,HMCTS,03/09/2020,PPE - POA & AUC (OWNED) - COST - ADDITIONS - BUILDINGS,HMCTS Estate,MITIE LTD,43593/92143579,"28,683.18",Property related costs
MOJ,HMCTS,04/09/2020,EXP - PURCHASE OF GOODS/SERVICES - HOSTING - Hosting,HMCTS Digital,BT GLOBAL SERVICES,544695MOJ104509,"69,243.12",Information technology costs
MOJ,HMCTS,04/09/2020,EXP - PURCHASE OF GOODS/SERVICES - NETWORKING - Networks WAN/LAN,HMCTS Digital,6POINT6 LTD,2378,"40,000.00",Information technology costs
MOJ,HMCTS,04/09/2020,EXP - PURCHASE OF GOODS/SERVICES - OFFICE RELATED - POSTAGE,HMCTS,ROYAL MAIL GROUP PLC,1870756,"31,824.16",Postal servicess
MOJ,HMCTS,04/09/2020,EXP - PURCHASE OF GOODS/SERVICES - OFFICE RELATED - POSTAGE,HMCTS,ROYAL MAIL GROUP PLC,1869151,"83,789.18",Postal servicess
MOJ,HMCTS,04/09/2020,EXP - PURCHASE OF GOODS/SERVICES - OFFICE RELATED - POSTAGE,HMCTS,ROYAL MAIL GROUP PLC,1870753,"108,113.78",Postal servicess
MOJ,HMCTS,04/09/2020,EXP - PURCHASE OF GOODS/SERVICES - SUPPORT - OTHER,HMCTS Digital,ATOS IT SERVICES UK LTD,5584344280,"123,040.52",Information technology costs
MOJ,HMCTS,04/09/2020,EXP - PURCHASE OF GOODS/SERVICES - SUPPORT - OTHER,HMCTS Digital,ATOS IT SERVICES UK LTD,5584344281,"124,113.13",Information technology costs
MOJ,HMCTS,04/09/2020,EXP - PURCHASE OF GOODS/SERVICES - TELECOMS - Maintenance - non-mobile,HMCTS Digital,BT GLOBAL SERVICES,544692,"115,375.58",Information technology costs
MOJ,HMCTS,04/09/2020,EXP - SERVICE ELEMENT OF PFI FINANCE LEASES - Buildings,HMCTS Estate,ENTERPRISE CIVIC BUILDINGS LTD,RINV-0156,"373,938.70",Property related costs
MOJ,HMCTS,04/09/2020,EXP - SHORT-TERM CONTRACT & AGENCY STAFF - FULL COST - Clerical and Admin,Courts and Tribunals Service Centre Project,BROOK STREET UK LTD-2WM,2.02031E+11,"1,189,610.15",Agency staff
MOJ,HMCTS,04/09/2020,IA - POA & AUC - COST - ADDITIONS,HMCTS Digital,SOPRA STERIA LTD,100165540,"27,975.60",Information technology costs
MOJ,HMCTS,04/09/2020,IA - POA & AUC - COST - ADDITIONS,HMCTS Digital,SOLIRIUS CONSULTING LTD,2592-CE-BSP-001,"28,080.00",Information technology costs
MOJ,HMCTS,04/09/2020,IA - POA & AUC - COST - ADDITIONS,HMCTS Digital,SOLIRIUS CONSULTING LTD,2624-QA-VH-03,"30,990.00",Information technology costs
MOJ,HMCTS,04/09/2020,IA - POA & AUC - COST - ADDITIONS,HMCTS Digital,SOLIRIUS CONSULTING LTD,2609-ARCH-FH-002,"31,500.00",Information technology costs
MOJ,HMCTS,04/09/2020,IA - POA & AUC - COST - ADDITIONS,HMCTS Digital,SOLIRIUS CONSULTING LTD,2617-QA-IAC-03,"31,740.00",Information technology costs
MOJ,HMCTS,04/09/2020,IA - POA & AUC - COST - ADDITIONS,HMCTS Digital,SOLIRIUS CONSULTING LTD,2647-QA-FH2-001,"31,878.00",Information technology costs
MOJ,HMCTS,04/09/2020,IA - POA & AUC - COST - ADDITIONS,HMCTS Digital,SOLIRIUS CONSULTING LTD,2646-QA-FH-001,"33,234.00",Information technology costs
MOJ,HMCTS,04/09/2020,IA - POA & AUC - COST - ADDITIONS,HMCTS Digital,SOLIRIUS CONSULTING LTD,2619-QA-FPLA-03,"33,258.00",Information technology costs
MOJ,HMCTS,04/09/2020,IA - POA & AUC - COST - ADDITIONS,HMCTS Digital,PA CONSULTING SERVICES LTD,3951,"33,528.00",Information technology costs
MOJ,HMCTS,04/09/2020,IA - POA & AUC - COST - ADDITIONS,HMCTS Digital,KAINOS SOFTWARE LTD,INV022337,"37,068.00",Information technology costs
MOJ,HMCTS,04/09/2020,IA - POA & AUC - COST - ADDITIONS,HMCTS Digital,AGILESPHERE LLP,2414,"37,980.36",Information technology costs
MOJ,HMCTS,04/09/2020,IA - POA & AUC - COST - ADDITIONS,HMCTS Digital,SOLIRIUS CONSULTING LTD,2642-CE-VH-002,"64,860.00",Information technology costs
MOJ,HMCTS,04/09/2020,IA - POA & AUC - COST - ADDITIONS,HMCTS Digital,CGI IT UK LTD,GB014041813,"68,932.20",Information technology costs
MOJ,HMCTS,04/09/2020,IA - POA & AUC - COST - ADDITIONS,HMCTS Digital,CGI IT UK LTD,GB014043210,"73,582.80",Information technology costs
MOJ,HMCTS,04/09/2020,IA - POA & AUC - COST - ADDITIONS,HMCTS Digital,CGI IT UK LTD,GB014044291,"86,099.04",Information technology costs
MOJ,HMCTS,04/09/2020,IA - POA & AUC - COST - ADDITIONS,HMCTS Digital,AGILESPHERE LLP,2442,"94,770.00",Information technology costs
MOJ,HMCTS,04/09/2020,PPE - POA & AUC (OWNED) - COST - ADDITIONS - BUILDINGS,HMCTS Estate,TURNER & TOWNSEND PROJECT MANAGEMENT LTD,598742,"61,864.80",Property related costs
MOJ,HMCTS,04/09/2020,PPE - POA & AUC (OWNED) - COST - ADDITIONS - BUILDINGS,HMCTS Estate,G4S FACILITIES MANAGEMENT (UK) LTD,90398850,"71,784.35",Property related costs
MOJ,HMCTS,04/09/2020,PPE - POA & AUC (OWNED) - COST - ADDITIONS - BUILDINGS,HMCTS Estate,INTERSERVE CONSTRUCTION LTD,TMP00543,"228,526.46",Property related costs
MOJ,HMCTS,04/09/2020,PPE - POA & AUC (OWNED) - COST - ADDITIONS - OTHER,HMCTS Digital,BT GLOBAL SERVICES,544700,"29,676.12",Information technology costs
MOJ,HMCTS,07/09/2020,CA - PREPAYMENTS (NON-PFI) - Service Charge Prepayment Control,HMCTS Estate,OSPREY HOUSE (MANAGEMENT) LTD,269A,"42,666.76",Property related costs
MOJ,HMCTS,07/09/2020,EXP - PURCHASE OF GOODS/SERVICES - NETWORKING - Networks WAN/LAN,HMCTS Digital,VODAFONE LTD,4001055,"42,834.67",Information technology costs
MOJ,HMCTS,07/09/2020,EXP - PURCHASE OF GOODS/SERVICES - OFFICE RELATED - Reprographics,HMCTS Digital,EXELA TECHNOLOGIES LTD,25017,"30,902.84",Information technology costs
MOJ,HMCTS,07/09/2020,EXP - PURCHASE OF GOODS/SERVICES - OFFICE RELATED - Reprographics,HMCTS Digital,EXELA TECHNOLOGIES LTD,26469,"50,577.77",Information technology costs
MOJ,HMCTS,07/09/2020,EXP - PURCHASE OF GOODS/SERVICES - OTHER - Professional Fees,ERP2,MOTT MACDONALD LTD,IN00444379,"33,691.78",Professional services
MOJ,HMCTS,07/09/2020,EXP - PURCHASE OF GOODS/SERVICES - SUPPORT - LICENCES,HMCTS Digital,DYNATRACE LTD,GBR-2004159,"87,450.00",Information technology costs
MOJ,HMCTS,07/09/2020,EXP - PURCHASE OF GOODS/SERVICES - SUPPORT - LICENCES,HMCTS Digital,TRUSTMARQUE SOLUTIONS LTD,2304719,"395,443.80",Information technology costs
MOJ,HMCTS,07/09/2020,EXP - PURCHASE OF GOODS/SERVICES - TELECOMS - Charges/Rental-non mobile,HMCTS Digital,BT CONFERENCING,BT012340610,"439,758.07",Information technology costs
MOJ,HMCTS,07/09/2020,EXP - SERVICE ELEMENT OF PFI FINANCE LEASES - Buildings,HMCTS Estate,MODERN COURTS (EAST ANGLIA) LTD,396,"546,664.44",Property related costs
MOJ,HMCTS,07/09/2020,IA - POA & AUC - COST - ADDITIONS,HMCTS Digital,PA CONSULTING SERVICES LTD,4380,"33,528.00",Information technology costs
MOJ,HMCTS,07/09/2020,IA - POA & AUC - COST - ADDITIONS,HMCTS Digital,CGI IT UK LTD,GB014044365,"59,415.24",Information technology costs
MOJ,HMCTS,07/09/2020,PPE - POA & AUC (OWNED) - COST - ADDITIONS - BUILDINGS,HMCTS Estate,G4S FACILITIES MANAGEMENT (UK) LTD,90399081,"58,435.62",Property related costs
MOJ,HMCTS,07/09/2020,PPE - POA & AUC (OWNED) - COST - ADDITIONS - OTHER,HMCTS Digital,BT GLOBAL SERVICES,544699,"30,752.73",Information technology costs
MOJ,HMCTS,08/09/2020,CA - PREPAYMENTS (NON-PFI) - Service Charge Prepayment Control,HMCTS Estate,LAMBERT SMITH HAMPTON,1041597A,"41,246.41",Property related costs
MOJ,HMCTS,08/09/2020,EXP - PURCHASE OF GOODS/SERVICES - ACCOMMODATION & BLDNG MANAGEMENT - Property Service Charges,HMCTS Estate,HARRISLAMB PROPERTY CONSULTANCY,90604A,"31,436.71",Property related costs
MOJ,HMCTS,08/09/2020,EXP - PURCHASE OF GOODS/SERVICES - ACCOMMODATION & BLDNG MANAGEMENT - Property Service Charges,HMCTS Estate,CBGA ROBSON LLP,190/226A,"41,059.01",Property related costs
MOJ,HMCTS,08/09/2020,EXP - PURCHASE OF GOODS/SERVICES - ACCOMMODATION & BLDNG MANAGEMENT - Property Service Charges,HMCTS Estate,BRUNTWOOD,SIN157264,"204,218.93",Property related costs
MOJ,HMCTS,08/09/2020,EXP - PURCHASE OF GOODS/SERVICES - ACCOMMODATION & BLDNG MANAGEMENT - Property Service Charges,HMCTS Estate,CBGA ROBSON LLP,190/228A,"348,707.34",Property related costs
MOJ,HMCTS,08/09/2020,EXP - PURCHASE OF GOODS/SERVICES - FM EMERGENCY WORKS,HMCTS Estate,ENGIE SERVICES LTD,1800078295,"56,768.51",Property related costs
MOJ,HMCTS,08/09/2020,EXP - PURCHASE OF GOODS/SERVICES - OFFICE RELATED - Reprographics,HMCTS Digital,EXELA TECHNOLOGIES LTD,276451,"85,023.49",Information technology costs
MOJ,HMCTS,08/09/2020,EXP - PURCHASE OF GOODS/SERVICES - SUPPORT - APPLICATION MAINTENANCE AND SUPPORT,HMCTS Digital,ENGINE PARTNERS UK LLP,ENUKPI011430,"76,500.00",Information technology costs
MOJ,HMCTS,08/09/2020,EXP - PURCHASE OF GOODS/SERVICES - WATER,HMCTS,BUSINESS STREAM,2020-09,"36,775.42",Property related costs
MOJ,HMCTS,08/09/2020,EXP - RENTALS UNDER NON-PFI OPERATING LEASES - BUILDINGS,HMCTS Estate,HARRISLAMB PROPERTY CONSULTANCY,90365A,"66,127.50",Property related costs
MOJ,HMCTS,08/09/2020,EXP - SERVICE ELEMENT OF PFI FINANCE LEASES - Buildings,HMCTS Estate,DERBYSHIRE COURTS LTD,2020-13,"674,536.56",Property related costs
MOJ,HMCTS,08/09/2020,IA - POA & AUC - COST - ADDITIONS,HMCTS Digital,SOLIRIUS CONSULTING LTD,2618-QA-BSPD-03,"31,740.00",Information technology costs
MOJ,HMCTS,08/09/2020,IA - POA & AUC - COST - ADDITIONS,HMCTS Digital,AGILESPHERE LLP,2436,"32,200.74",Information technology costs
MOJ,HMCTS,08/09/2020,IA - POA & AUC - COST - ADDITIONS,HMCTS Digital,KAINOS SOFTWARE LTD,INV022450,"42,930.00",Information technology costs
MOJ,HMCTS,08/09/2020,IA - POA & AUC - COST - ADDITIONS,HMCTS Digital,CAPGEMINI UK PLC,2.60011E+12,"152,018.40",Information technology costs
MOJ,HMCTS,08/09/2020,PPE - POA & AUC (OWNED) - COST - ADDITIONS - BUILDINGS - Professional fees,HMCTS Court,TURNER & TOWNSEND PROJECT MANAGEMENT LTD,598740,"39,994.33",Professional services
MOJ,HMCTS,09/09/2020,CA - PREPAYMENTS (NON-PFI) - Rent Prepayment Control,HMCTS Estate,CORK STREET PROPERTIES LTD,42929A,"2,947,929.60",Property related costs
MOJ,HMCTS,09/09/2020,EXP - MISCELLANEOUS EXPENDITURE - Advocate,Supreme Courts Cost office,FIVE ST ANDREWS HILL CHAMBERS,GB37179654,"50,700.00",Legal services
MOJ,HMCTS,09/09/2020,EXP - PURCHASE OF GOODS/SERVICES - ACCOMMODATION & BLDNG MANAGEMENT - OFFICE CLEANING,HMCTS Estate,MITIE LTD,43593/92094674,"77,541.17",Property related costs
MOJ,HMCTS,09/09/2020,EXP - PURCHASE OF GOODS/SERVICES - ACCOMMODATION & BLDNG MANAGEMENT - Property Service Charges,HMCTS Estate,MAPELEY STEPS CONTRACTOR LTD,50489078A,"87,757.80",Property related costs
MOJ,HMCTS,09/09/2020,EXP - PURCHASE OF GOODS/SERVICES - HOSTING - Hosting,HMCTS Digital,CACI LTD,24274,"54,527.29",Information technology costs
MOJ,HMCTS,09/09/2020,EXP - PURCHASE OF GOODS/SERVICES - SUPPORT - APPLICATION MAINTENANCE AND SUPPORT,HMCTS Digital,KAINOS SOFTWARE LTD,INV022452,"32,400.00",Information technology costs
MOJ,HMCTS,09/09/2020,EXP - PURCHASE OF GOODS/SERVICES - SUPPORT - APPLICATION MAINTENANCE AND SUPPORT,HMCTS Digital,PA CONSULTING SERVICES LTD,4379,"45,804.00",Information technology costs
MOJ,HMCTS,09/09/2020,EXP - PURCHASE OF GOODS/SERVICES - SUPPORT - APPLICATION MAINTENANCE AND SUPPORT,HMCTS Digital,CGI IT UK LTD,GB014044414,"56,892.00",Information technology costs
MOJ,HMCTS,09/09/2020,EXP - PURCHASE OF GOODS/SERVICES - SUPPORT - APPLICATION MAINTENANCE AND SUPPORT,HMCTS Digital,ATOS IT SERVICES UK LTD-2WM,0250/0720,"66,585.59",Information technology costs
MOJ,HMCTS,09/09/2020,EXP - PURCHASE OF GOODS/SERVICES -ACCOMM& BLDNG MGMT - GROUNDS MAINTENANCE,HMCTS Estate,MITIE LTD,43593/92094677,"373,191.14",Property related costs
MOJ,HMCTS,09/09/2020,EXP - SERVICE ELEMENT OF PFI FINANCE LEASES - Buildings,HMCTS Estate,PALECASTLE LTD,PC229,"139,035.02",Property related costs
MOJ,HMCTS,09/09/2020,EXP - SERVICE ELEMENT OF PFI FINANCE LEASES - Other,HMCS Central Admin Budgets,LIBERATA UK LTD,114623RI,"668,151.49",Outsourced shared services costs
MOJ,HMCTS,09/09/2020,IA - POA & AUC - COST - ADDITIONS,HMCTS Digital,CGI IT UK LTD,GB014044266,"49,558.26",Information technology costs
MOJ,HMCTS,09/09/2020,IA - POA & AUC - COST - ADDITIONS,HMCTS Digital,CAPGEMINI UK PLC,2.60011E+12,"68,544.00",Information technology costs
MOJ,HMCTS,09/09/2020,IA - POA & AUC - COST - ADDITIONS,HMCTS Digital,COGNIZANT WORLDWIDE LTD,CW101-0000541911,"83,502.00",Information technology costs
MOJ,HMCTS,09/09/2020,IA - POA & AUC - COST - ADDITIONS,HMCTS Digital,CAPGEMINI UK PLC,2.60011E+12,"114,384.00",Information technology costs
MOJ,HMCTS,09/09/2020,IA - POA & AUC - COST - ADDITIONS,HMCTS Digital,COGNIZANT WORLDWIDE LTD,CW101-0000541595,"114,780.00",Information technology costs
MOJ,HMCTS,09/09/2020,IA - POA & AUC - COST - ADDITIONS,HMCTS Digital,COGNIZANT WORLDWIDE LTD,CW101-0000541597,"135,268.80",Information technology costs
MOJ,HMCTS,09/09/2020,IA - POA & AUC - COST - ADDITIONS,HMCTS Digital,TRIAD GROUP PLC,997033,"170,004.00",Information technology costs
MOJ,HMCTS,09/09/2020,IA - POA & AUC - COST - ADDITIONS,HMCTS Digital,COGNIZANT WORLDWIDE LTD,CW101-0000541822,"185,554.50",Information technology costs
MOJ,HMCTS,09/09/2020,IA - POA & AUC - COST - ADDITIONS,HMCTS Digital,COGNIZANT WORLDWIDE LTD,CW101-0000542003,"193,151.70",Information technology costs
MOJ,HMCTS,09/09/2020,PPE - POA & AUC (OWNED) - COST - ADDITIONS - BUILDINGS,HMCTS Estate,TURNER & TOWNSEND PROJECT MANAGEMENT LTD,599491,"26,400.04",Property related costs
MOJ,HMCTS,09/09/2020,PPE - POA & AUC (OWNED) - COST - ADDITIONS - BUILDINGS,HMCTS Estate,ISG CONSTRUCTION LTD,CSI01344-13,"410,625.01",Property related costs
MOJ,HMCTS,10/09/2020,CA - OTHER RECEIVABLES - Neopost Deposit,Regional Directors Office - North West Region,QUADIENT UK LTD CONSUMABLES,GA10120689,"106,400.00",Postal servicess
MOJ,HMCTS,10/09/2020,CA - PREPAYMENTS (NON-PFI) - Rent Prepayment Control,HMCTS Estate,CBRE LTD,202000022311/10101A,"25,117.50",Property related costs
MOJ,HMCTS,10/09/2020,CA - PREPAYMENTS (NON-PFI) - Rent Prepayment Control,HMCTS Estate,JOHN & SANDRA JOSEPH,153A,"204,900.00",Property related costs
MOJ,HMCTS,10/09/2020,CA - PREPAYMENTS (NON-PFI) - Service Charge Prepayment Control,HMCTS Estate,ARROWMERE CAPITOL,INV-0637A,"40,025.55",Property related costs
MOJ,HMCTS,10/09/2020,CA - PREPAYMENTS (NON-PFI) - Service Charge Prepayment Control,HMCTS Estate,ARROWMERE CAPITOL,INV-0640A,"76,153.94",Property related costs
MOJ,HMCTS,10/09/2020,EXP - MISCELLANEOUS EXPENDITURE - Advocate,Criminal Appeals Office,Gardencourtchambers.co.uk,227066*2,"30,240.00",Legal services
MOJ,HMCTS,10/09/2020,EXP - MISCELLANEOUS EXPENDITURE - Advocate,Criminal Appeals Office,H BLAXLANDQC CO,227064*1,"54,360.00",Legal services
MOJ,HMCTS,10/09/2020,EXP - PURCHASE OF GOODS/SERVICES - ACCOMMODATION & BLDNG MANAGEMENT - Professional works advice/services,Estates Director - HMCS HQ,AECOM LTD,28434764,"34,377.46",Professional services
MOJ,HMCTS,10/09/2020,EXP - PURCHASE OF GOODS/SERVICES - ACCOMMODATION & BLDNG MANAGEMENT - Property Service Charges,HMCTS Estate,PROPERTY PARTNERS MANAGEMENT LTD,74758A,"37,220.50",Property related costs
MOJ,HMCTS,10/09/2020,EXP - PURCHASE OF GOODS/SERVICES - ACCOMMODATION & BLDNG MANAGEMENT - Property Service Charges,HMCTS Estate,CBRE LTD,202000000333/13474A,"76,221.30",Property related costs
MOJ,HMCTS,10/09/2020,EXP - PURCHASE OF GOODS/SERVICES - FM PRIORITY PROJECT WORKS,HMCTS Estate,RICOH UK LTD,58040973,"25,003.34",Property related costs
MOJ,HMCTS,10/09/2020,EXP - PURCHASE OF GOODS/SERVICES - FM PRIORITY PROJECT WORKS,HMCTS Estate,RICOH UK LTD,58040972,"28,146.24",Property related costs
MOJ,HMCTS,10/09/2020,EXP - PURCHASE OF GOODS/SERVICES - FM PRIORITY PROJECT WORKS,HMCTS Estate,RICOH UK LTD,58043828,"30,131.27",Property related costs
MOJ,HMCTS,10/09/2020,EXP - PURCHASE OF GOODS/SERVICES - OFFICE RELATED - POSTAGE,HMCTS,ROYAL MAIL GROUP PLC,1869849,"45,379.39",Postal servicess
MOJ,HMCTS,10/09/2020,EXP - PURCHASE OF GOODS/SERVICES - OFFICE RELATED - POSTAGE,HMCTS,ROYAL MAIL GROUP PLC,0001870082A,"52,354.17",Postal servicess
MOJ,HMCTS,10/09/2020,EXP - PURCHASE OF GOODS/SERVICES - OFFICE RELATED - POSTAGE,HMCTS,ROYAL MAIL GROUP PLC,1869851,"54,307.58",Postal servicess
MOJ,HMCTS,10/09/2020,EXP - PURCHASE OF GOODS/SERVICES - OFFICE RELATED - POSTAGE,HMCTS,ROYAL MAIL GROUP PLC,1870299,"68,290.90",Postal servicess
MOJ,HMCTS,10/09/2020,EXP - PURCHASE OF GOODS/SERVICES - OFFICE RELATED - POSTAGE,HMCTS,ROYAL MAIL GROUP PLC,1870755,"76,930.55",Postal servicess
MOJ,HMCTS,10/09/2020,EXP - PURCHASE OF GOODS/SERVICES - OTHER - Storage services,Probate GBO,IRON MOUNTAIN (UK) LTD,635552,"377,055.52",Storage services
MOJ,HMCTS,10/09/2020,EXP - PURCHASE OF GOODS/SERVICES - SUPPORT - APPLICATION DEVELOPMENT,HMCTS Digital,TRIAD GROUP PLC,997032,"29,760.00",Information technology costs
MOJ,HMCTS,10/09/2020,EXP - PURCHASE OF GOODS/SERVICES - SUPPORT - OTHER,HMCTS Digital,VODAFONE LIMITED,4001204,"56,310.11",Information technology costs
MOJ,HMCTS,10/09/2020,EXP - PURCHASE OF GOODS/SERVICES - TELECOMS - TELEPHONE,HMCTS Digital,VODAFONE LIMITED,4001202,"61,498.37",Information technology costs
MOJ,HMCTS,10/09/2020,IA - POA & AUC - COST - ADDITIONS,HMCTS Digital,AGILESPHERE LLP,2449,"78,183.00",Information technology costs
MOJ,HMCTS,10/09/2020,PPE - POA & AUC (OWNED) - COST - ADDITIONS - BUILDINGS,HMCTS Estate,MACE LTD,2101001882,"34,574.98",Property related costs
MOJ,HMCTS,10/09/2020,PPE - POA & AUC (OWNED) - COST - ADDITIONS - BUILDINGS,HMCTS Estate,VINCI CONSTRUCTION UK LTD,20090042,"162,180.29",Property related costs
MOJ,HMCTS,11/09/2020,EXP - PURCHASE OF GOODS/SERVICES - OTHER PROFESSIONAL SERVICES - other than legal,HMCTS Digital,CABINET OFFICE,3795256,"31,171.39",Information technology costs
MOJ,HMCTS,11/09/2020,EXP - PURCHASE OF GOODS/SERVICES - SUPPORT - APPLICATION MAINTENANCE AND SUPPORT,HMCTS Digital,CGI IT UK LTD,GB014044272,"46,960.80",Information technology costs
MOJ,HMCTS,11/09/2020,EXP - PURCHASE OF GOODS/SERVICES - SUPPORT - APPLICATION MAINTENANCE AND SUPPORT,HMCTS Digital,ENGINE PARTNERS UK LLP,ENUKPI011656,"54,600.00",Information technology costs
MOJ,HMCTS,11/09/2020,EXP - PURCHASE OF GOODS/SERVICES - SUPPORT - APPLICATION MAINTENANCE AND SUPPORT,HMCTS Digital,ENGINE PARTNERS UK LLP,ENUKPI011655,"65,774.00",Information technology costs
MOJ,HMCTS,11/09/2020,EXP - PURCHASE OF GOODS/SERVICES - SUPPORT - APPLICATION MAINTENANCE AND SUPPORT,HMCTS Digital,6POINT6 LTD,2380,"77,490.00",Information technology costs
MOJ,HMCTS,11/09/2020,EXP - PURCHASE OF GOODS/SERVICES - SUPPORT - APPLICATION MAINTENANCE AND SUPPORT,HMCTS Digital,KAINOS SOFTWARE LTD,INV022503,"135,595.00",Information technology costs
MOJ,HMCTS,11/09/2020,EXP - PURCHASE OF GOODS/SERVICES - SUPPORT - APPLICATION MAINTENANCE AND SUPPORT,HMCTS Digital,CGI IT UK LTD,GB014044273,"238,662.25",Information technology costs
MOJ,HMCTS,11/09/2020,EXP - PURCHASE OF GOODS/SERVICES - SUPPORT - OTHER,HMCTS Digital,THOMSON REUTERS,6136645790,"115,334.66",Information technology costs
MOJ,HMCTS,11/09/2020,EXP - PURCHASE OF GOODS/SERVICES -ACCOMM& BLDNG MGMT - GROUNDS MAINTENANCE,HMCTS Estate,CASTLE WATER,1001194,"29,585.89",Property related costs
MOJ,HMCTS,11/09/2020,EXP - SERVICE ELEMENT OF PFI FINANCE LEASES - Buildings,HMCTS Estate,UK COURT SERVICES (MANCHESTER) LTD,UK20051,"30,523.94",Property related costs
MOJ,HMCTS,11/09/2020,EXP - SERVICE ELEMENT OF PFI FINANCE LEASES - Buildings,HMCTS Estate,UK COURT SERVICES (MANCHESTER) LTD,UK20050,"733,385.84",Property related costs
MOJ,HMCTS,11/09/2020,IA - POA & AUC - COST - ADDITIONS,HMCTS Digital,ATOS IT SERVICES UK LTD,5584343726,"44,280.00",Information technology costs
MOJ,HMCTS,11/09/2020,IA - POA & AUC - COST - ADDITIONS,HMCTS Digital,ATOS IT SERVICES UK LTD,5584339055,"58,320.00",Information technology costs
MOJ,HMCTS,11/09/2020,IA - POA & AUC - COST - ADDITIONS,HMCTS Digital,ATOS IT SERVICES UK LTD,5584338443,"59,760.00",Information technology costs
MOJ,HMCTS,11/09/2020,IA - POA & AUC - COST - ADDITIONS,HMCTS Digital,KAINOS SOFTWARE LTD,INV020580,"65,520.00",Information technology costs
MOJ,HMCTS,11/09/2020,IA - POA & AUC - COST - ADDITIONS,HMCTS Digital,ATOS IT SERVICES UK LTD,5584341020,"77,040.00",Information technology costs
MOJ,HMCTS,14/09/2020,EXP - PURCHASE OF GOODS/SERVICES - ACCOMMODATION & BLDNG MANAGEMENT - OGD Occupancy,Harmondsworth AIT,HOME OFFICE IT,2562477A,"331,400.26",Property related costs
MOJ,HMCTS,14/09/2020,EXP - PURCHASE OF GOODS/SERVICES - HOSTING - Hosting,HMCTS Digital,THE POLICE & CRIME COMMISSIONER FOR SUSSEX,1800046884,"73,693.33",Information technology costs
MOJ,HMCTS,14/09/2020,EXP - PURCHASE OF GOODS/SERVICES - HOSTING - Hosting,HMCTS Digital,THE POLICE & CRIME COMMISSIONER FOR SUSSEX,1800046852,"90,278.57",Information technology costs
MOJ,HMCTS,14/09/2020,EXP - PURCHASE OF GOODS/SERVICES - OFFICE RELATED - POSTAGE,HMCTS,ROYAL MAIL GROUP PLC,1869852,"26,023.36",Postal servicess
MOJ,HMCTS,14/09/2020,EXP - PURCHASE OF GOODS/SERVICES - OTHER PROFESSIONAL SERVICES - Legal Services - Counsel,Property FM Reprocurement,BURGES SALMON LLP,100152863,"116,185.20",Legal services
MOJ,HMCTS,14/09/2020,EXP - PURCHASE OF GOODS/SERVICES - SUPPORT - APPLICATION MAINTENANCE AND SUPPORT,HMCTS Digital,6POINT6 LTD,2375,"81,120.00",Information technology costs
MOJ,HMCTS,14/09/2020,EXP - PURCHASE OF GOODS/SERVICES - SUPPORT - LICENCES,HMCTS Digital,TRUSTMARQUE SOLUTIONS LTD,2304414,"29,327.62",Information technology costs
MOJ,HMCTS,14/09/2020,EXP - RENTALS UNDER NON-PFI OPERATING LEASES - BUILDINGS,HMCTS Estate,OLD PARK LANE MANAGEMENT SERVICES LTD,AFP1069A,"669,750.00",Property related costs
MOJ,HMCTS,14/09/2020,EXP - SHORT-TERM CONTRACT & AGENCY STAFF - FULL COST - Clerical and Admin,Courts and Tribunals Service Centre Project,BROOK STREET UK LTD-2WM,2.02031E+11,"977,383.08",Agency staff
MOJ,HMCTS,14/09/2020,IA - POA & AUC - COST - ADDITIONS,HMCTS Digital,CAPGEMINI UK PLC,2.60011E+12,"40,496.40",Information technology costs
MOJ,HMCTS,14/09/2020,IA - POA & AUC - COST - ADDITIONS,HMCTS Digital,KINLY LTD,IN02-103462,"42,191.06",Information technology costs
MOJ,HMCTS,14/09/2020,IA - POA & AUC - COST - ADDITIONS,HMCTS Digital,ATOS IT SERVICES UK LTD,5584343733,"45,676.80",Information technology costs
MOJ,HMCTS,14/09/2020,IA - POA & AUC - COST - ADDITIONS,HMCTS Digital,SOLIRIUS CONSULTING LTD,2668-CE-VHD-001,"59,460.00",Information technology costs
MOJ,HMCTS,14/09/2020,IA - POA & AUC - COST - ADDITIONS,HMCTS Digital,ENGINE PARTNERS UK LLP,ENUKPI011654,"80,700.00",Information technology costs
MOJ,HMCTS,14/09/2020,IA - POA & AUC - COST - ADDITIONS,HMCTS Digital,ATOS IT SERVICES UK LTD,5584343731,"155,786.40",Information technology costs
MOJ,HMCTS,14/09/2020,IA - POA & AUC - COST - ADDITIONS,HMCTS Digital,ENGINE PARTNERS UK LLP,ENUKPI011714,"275,915.00",Information technology costs
MOJ,HMCTS,14/09/2020,PPE - POA & AUC (OWNED) - COST - ADDITIONS - BUILDINGS,HMCTS Estate,ENGIE SERVICES LTD,1800077547,"87,841.87",Property related costs
MOJ,HMCTS,15/09/2020,CA - PREPAYMENTS (NON-PFI) - Rent Prepayment Control,HMCTS Estate,BOND WOLFE ASSETS LTD,INVOICE/3305/BWAA,"62,885.69",Property related costs
MOJ,HMCTS,15/09/2020,CA - PREPAYMENTS (NON-PFI) - Rent Prepayment Control,HMCTS Estate,JONES LANG LASALLE,00030-202000647A,"277,091.45",Property related costs
MOJ,HMCTS,15/09/2020,EXP - PURCHASE OF GOODS/SERVICES - ACCOMMODATION & BLDNG MANAGEMENT - Professional works advice/services,Estates Director - HMCS HQ,TURNER & TOWNSEND COST MANAGEMENT LTD,216088,"28,589.26",Professional services
MOJ,HMCTS,15/09/2020,EXP - PURCHASE OF GOODS/SERVICES - ACCOMMODATION & BLDNG MANAGEMENT - Professional works advice/services,Estates Director - HMCS HQ,MACE LTD,2101001940,"86,451.79",Professional services
MOJ,HMCTS,15/09/2020,EXP - PURCHASE OF GOODS/SERVICES - ACCOMMODATION & BLDNG MANAGEMENT - Property Service Charges,HMCTS Estate,KNIGHT FRANK LLP,79289A,"34,155.00",Property related costs
MOJ,HMCTS,15/09/2020,EXP - PURCHASE OF GOODS/SERVICES - OFFICE RELATED - POSTAGE,HMCTS,ROYAL MAIL GROUP PLC,1870754,"548,923.08",Postal servicess
MOJ,HMCTS,15/09/2020,EXP - RENTALS UNDER NON-PFI OPERATING LEASES - BUILDINGS,HMCTS Estate,CORE PROPERTY MANAGEMENT & CONSULTANCY LTD,3760A,"86,058.00",Property related costs
MOJ,HMCTS,15/09/2020,IA - POA & AUC - COST - ADDITIONS,HMCTS Digital,KAINOS SOFTWARE LTD,INV022445,"55,860.00",Information technology costs
MOJ,HMCTS,15/09/2020,IA - POA & AUC - COST - ADDITIONS,HMCTS Digital,KAINOS SOFTWARE LTD,INV022289,"58,032.00",Information technology costs
MOJ,HMCTS,15/09/2020,IA - POA & AUC - COST - ADDITIONS,HMCTS Digital,KAINOS SOFTWARE LTD,INV022446,"188,628.00",Information technology costs
MOJ,HMCTS,15/09/2020,IA - POA & AUC - COST - ADDITIONS,HMCTS Digital,KAINOS SOFTWARE LTD,INV022449,"235,548.00",Information technology costs
MOJ,HMCTS,15/09/2020,IA - POA & AUC - COST - ADDITIONS,HMCTS Digital,KAINOS SOFTWARE LTD,INV022288,"236,658.00",Information technology costs
MOJ,HMCTS,15/09/2020,IA - POA & AUC - COST - ADDITIONS,HMCTS Digital,MCGIRR INFORMATION TECHNOLOGY PTY LTD,MCGIRR00020698,"256,110.00",Information technology costs
MOJ,HMCTS,16/09/2020,CA - PREPAYMENTS (NON-PFI) - Rent Prepayment Control,HMCTS Estate,JAMES ANDREW RSW,143633A,"316,498.80",Property related costs
MOJ,HMCTS,16/09/2020,CA - PREPAYMENTS (NON-PFI) - Rent Prepayment Control,HMCTS Estate,JONES LANG LASALLE,00343-202000195A,"1,493,835.90",Property related costs
MOJ,HMCTS,16/09/2020,EXP - PURCHASE OF GOODS/SERVICES - ACCOMMODATION & BLDNG MANAGEMENT - Professional works advice/services,Estates Director - HMCS HQ,CUSHMAN & WAKEFIELD DEBENHAM TIE LEUNG LTD,GB3002-CI-20-09905,"43,084.10",Professional services
MOJ,HMCTS,16/09/2020,EXP - PURCHASE OF GOODS/SERVICES - ACCOMMODATION & BLDNG MANAGEMENT - Property Service Charges,HMCTS Estate,MAYFIELD ASSET & PROPERTY MANAGEMENT LTD,20030A,"29,894.53",Property related costs
MOJ,HMCTS,16/09/2020,EXP - PURCHASE OF GOODS/SERVICES - SUPPORT - APPLICATION MAINTENANCE AND SUPPORT,HMCTS Digital,TRIAD GROUP PLC,997034,"449,190.00",Information technology costs
MOJ,HMCTS,16/09/2020,EXP - PURCHASE OF GOODS/SERVICES - TRAINING & DEVELOPMENT,HMCTS L&D Business Skills Delivery,CAPITA BUSINESS SERVICES LTD,X139648,"63,411.07",Staff training
MOJ,HMCTS,16/09/2020,EXP - RENTALS UNDER NON-PFI OPERATING LEASES - BUILDINGS,HMCTS Estate,LONDON & SCOTTISH PROPERTY INVESTMENT MANAGEMENT LTD,77225A,"86,880.60",Property related costs
MOJ,HMCTS,16/09/2020,IA - POA & AUC - COST - ADDITIONS,CTSC Technology,AGILESPHERE LLP,2438,"30,962.26",Information technology costs
MOJ,HMCTS,16/09/2020,IA - POA & AUC - COST - ADDITIONS,HMCTS Digital,KAINOS SOFTWARE LTD,INV022444,"101,247.00",Information technology costs
MOJ,HMCTS,16/09/2020,IA - POA & AUC - COST - ADDITIONS,HMCTS Digital,AGILESPHERE LLP,2455,"176,175.00",Information technology costs
MOJ,HMCTS,17/09/2020,CA - PREPAYMENTS (NON-PFI) - Rent Prepayment Control,HMCTS Estate,CP & CJ BROWN,379A,"28,500.00",Property related costs
MOJ,HMCTS,17/09/2020,CA - PREPAYMENTS (NON-PFI) - Service Charge Prepayment Control,HMCTS Estate,HARTLEPOOL BOROUGH COUNCIL,0040349259A,"80,675.91",Property related costs
MOJ,HMCTS,17/09/2020,EXP - PURCHASE OF GOODS/SERVICES - ACCOMMODATION & BLDNG MANAGEMENT - OGD Occupancy,Yarlswood AIT,HOME OFFICE IT,2562478A,"390,076.62",Property related costs
MOJ,HMCTS,17/09/2020,EXP - PURCHASE OF GOODS/SERVICES - SUPPORT - APPLICATION MAINTENANCE AND SUPPORT,HMCTS Digital,CGI IT UK LTD,GB014043787,"54,080.40",Information technology costs
MOJ,HMCTS,17/09/2020,EXP - PURCHASE OF GOODS/SERVICES - SUPPORT - APPLICATION MAINTENANCE AND SUPPORT,HMCTS Digital,CGI IT UK LTD,GB014043786,"54,080.40",Information technology costs
MOJ,HMCTS,17/09/2020,EXP - PURCHASE OF GOODS/SERVICES - SUPPORT - APPLICATION MAINTENANCE AND SUPPORT,HMCTS Digital,ATOS IT SERVICES UK LTD-2WM,0250/0820,"250,375.80",Information technology costs
MOJ,HMCTS,17/09/2020,IA - POA & AUC - COST - ADDITIONS,HMCTS Digital,PA CONSULTING SERVICES LTD,4522,"32,256.00",Information technology costs
MOJ,HMCTS,17/09/2020,IA - POA & AUC - COST - ADDITIONS,HMCTS Digital,CGI IT UK LTD,GB014044707,"41,889.60",Information technology costs
MOJ,HMCTS,17/09/2020,IA - POA & AUC - COST - ADDITIONS,Customer Evaluation,CGI IT UK LTD,GB014044706,"44,119.00",Professional services
MOJ,HMCTS,17/09/2020,IA - POA & AUC - COST - ADDITIONS,HMCTS Digital,CGI IT UK LTD,GB014042590,"66,066.61",Information technology costs
MOJ,HMCTS,17/09/2020,IA - POA & AUC - COST - ADDITIONS,HMCTS Digital,CGI IT UK LTD,GB014044703,"112,495.20",Information technology costs
MOJ,HMCTS,17/09/2020,IA - POA & AUC - COST - ADDITIONS,HMCTS Digital,SCRUMCONNECT LTD,INV-1090,"112,590.00",Information technology costs
MOJ,HMCTS,17/09/2020,IA - POA & AUC - COST - ADDITIONS,HMCTS Digital,CGI IT UK LTD,GB014044701,"150,319.20",Information technology costs
MOJ,HMCTS,17/09/2020,IA - POA & AUC - COST - ADDITIONS,HMCTS Digital,QA CONSULTING SERVICES LTD,QACI005897,"155,706.00",Information technology costs
MOJ,HMCTS,17/09/2020,NCL - OTHER PAYABLES - Local Authority Loan Balances,Centrally managed budgets,SHEFFIELD CITY COUNCIL,119,"25,045.47",Loan repayment to Local Authority
MOJ,HMCTS,17/09/2020,NCL - OTHER PAYABLES - Local Authority Loan Balances,Centrally managed budgets,LONDON BOROUGH OF MERTON,116,"132,404.16",Loan repayment to Local Authority
MOJ,HMCTS,17/09/2020,PPE - POA & AUC (OWNED) - COST - ADDITIONS - BUILDINGS,HMCTS Estate,VINCI CONSTRUCTION UK LTD,20090406,"215,451.71",Property related costs
MOJ,HMCTS,17/09/2020,PPE - POA & AUC (OWNED) - COST - ADDITIONS - BUILDINGS,HMCTS Estate,VINCI CONSTRUCTION UK LTD,20090240,"735,374.70",Property related costs
MOJ,HMCTS,18/09/2020,CA - OTHER RECEIVABLES - Neopost Deposit,Regional Directors Office - North West Region,QUADIENT UK LTD CONSUMABLES,GA10120690,"87,730.00",Postal servicess
MOJ,HMCTS,18/09/2020,CA - PREPAYMENTS (NON-PFI) - Rent Prepayment Control,HMCTS Estate,COLLIERS INTERNATIONAL,638526,"331,312.56",Property related costs
MOJ,HMCTS,18/09/2020,EXP - PURCHASE OF GOODS/SERVICES - ACCOMMODATION & BLDNG MANAGEMENT - Property Service Charges,HMCTS Estate,LEEDS PLACE PROPERTY LTD,695A,"40,064.56",Property related costs
MOJ,HMCTS,18/09/2020,EXP - PURCHASE OF GOODS/SERVICES - SUPPORT - APPLICATION MAINTENANCE AND SUPPORT,HMCTS Digital,SCRUMCONNECT LTD,INV-1089,"103,350.00",Information technology costs
MOJ,HMCTS,18/09/2020,EXP - PURCHASE OF GOODS/SERVICES - TRAINING & DEVELOPMENT,Common Platform,SAID BUSINESS SCHOOL,45213,"25,000.00",Staff training
MOJ,HMCTS,18/09/2020,IA - POA & AUC - COST - ADDITIONS,HMCTS Digital,QA CONSULTING SERVICES LTD,QACI005947,"164,568.00",Information technology costs
MOJ,HMCTS,18/09/2020,IA - SOFTWARE LICENCES - COST - ADDITIONS,HMCTS Digital,CGI IT UK LTD,GB014044844,"26,215.04",Information technology costs
MOJ,HMCTS,18/09/2020,PPE - POA & AUC (OWNED) - COST - ADDITIONS - BUILDINGS,HMCTS Estate,GALLIFORD TRY CONSTRUCTION (UK) LTD,3103002290,"512,853.06",Property related costs
MOJ,HMCTS,21/09/2020,CA - PREPAYMENTS (NON-PFI) - Rent Prepayment Control,HMCTS Estate,SYNERGY HUNTINGDON UNIT TRUST,00007A,"470,258.50",Property related costs
MOJ,HMCTS,21/09/2020,EXP - PURCHASE OF GOODS/SERVICES - ACCOMMODATION & BLDNG MANAGEMENT - Professional works advice/services,Estates Director - HMCS HQ,GLEEDS,SOCM0494/001,"26,974.08",Professional services
MOJ,HMCTS,21/09/2020,EXP - PURCHASE OF GOODS/SERVICES - ACCOMMODATION & BLDNG MANAGEMENT - Property Service Charges,HMCTS Estate,WORKMAN,297/2693A,"331,152.29",Property related costs
MOJ,HMCTS,21/09/2020,Exp - Purchase Of Goods/Services - Consultancy,CFT Sub Office,PRICEWATERHOUSECOOPERS LLP,1355440490,"59,400.00",Consultancy fees
MOJ,HMCTS,21/09/2020,EXP - PURCHASE OF GOODS/SERVICES - ELECTRICITY,HMCTS,EDF ENERGY LTD,8328333,"1,324,645.57",Property related costs
MOJ,HMCTS,21/09/2020,EXP - PURCHASE OF GOODS/SERVICES - SUPPORT - APPLICATION MAINTENANCE AND SUPPORT,HMCTS Digital,SOLIRIUS CONSULTING LTD,2472-DTS-PET-001,"363,804.00",Information technology costs
MOJ,HMCTS,21/09/2020,EXP - SHORT-TERM CONTRACT & AGENCY STAFF - FULL COST - Clerical and Admin,EU Exit Programme Funding,BROOK STREET UK LTD-2WM,2.02031E+11,"1,232,051.31",Agency staff
MOJ,HMCTS,21/09/2020,IA - POA & AUC - COST - ADDITIONS,HMCTS Digital,SCRUMCONNECT LTD,INV-1092,"37,230.00",Information technology costs
MOJ,HMCTS,21/09/2020,IA - POA & AUC - COST - ADDITIONS,HMCTS Digital,SCRUMCONNECT LTD,INV-1091,"44,055.00",Information technology costs
MOJ,HMCTS,21/09/2020,IA - POA & AUC - COST - ADDITIONS,HMCTS Digital,ATOS IT SERVICES UK LTD,5584342351,"73,444.80",Information technology costs
MOJ,HMCTS,21/09/2020,IA - POA & AUC - COST - ADDITIONS,HMCTS Digital,SCRUMCONNECT LTD,INV-1088,"304,917.00",Information technology costs
MOJ,HMCTS,22/09/2020,CA - PREPAYMENTS (NON-PFI) - Rates Prepayment Control,Estates - South Yorkshire,BARNSLEY MBC,560136702/2020-21,"129,786.56",Property related costs
MOJ,HMCTS,22/09/2020,CA - PREPAYMENTS (NON-PFI) - Rent Prepayment Control,HMCTS Estate,VINE PROPERTY MANAGEMENT,202000000348A,"26,520.00",Property related costs
MOJ,HMCTS,22/09/2020,CA - PREPAYMENTS (NON-PFI) - Rent Prepayment Control,HMCTS Estate,VINE PROPERTY MANAGEMENT,202000000349A,"30,480.00",Property related costs
MOJ,HMCTS,22/09/2020,EXP - PURCHASE OF GOODS/SERVICES - ACCOMMODATION & BLDNG MANAGEMENT - Management fee,HMCTS Estate,OCS GROUP UK LTD,5000425074,"5,233,984.22",Professional services
MOJ,HMCTS,22/09/2020,EXP - PURCHASE OF GOODS/SERVICES - ACCOMMODATION & BLDNG MANAGEMENT - OFFICE CLEANING,HMCTS Estate,ARCO LIMITED,938757062,"26,555.46",Property related costs
MOJ,HMCTS,22/09/2020,EXP - PURCHASE OF GOODS/SERVICES - ACCOMMODATION & BLDNG MANAGEMENT - Property Service Charges,HMCTS Estate,CBRE LTD,TC15000273,"43,118.98",Property related costs
MOJ,HMCTS,22/09/2020,EXP - PURCHASE OF GOODS/SERVICES - ACCOMMODATION & BLDNG MANAGEMENT - Property Service Charges,HMCTS Estate,LAMBERT SMITH HAMPTON GROUP LTD,TC15000272,"157,048.37",Property related costs
MOJ,HMCTS,22/09/2020,EXP - PURCHASE OF GOODS/SERVICES - TELECOMS - Charges/Rental-non mobile,HMCTS Digital,VOICENET SOLUTIONS LTD T/A 8X8 SOLUTIONS,2753198,"197,675.22",Information technology costs
MOJ,HMCTS,22/09/2020,EXP - RENTALS UNDER NON-PFI OPERATING LEASES - BUILDINGS,HMCTS Estate,LAND SECURITIES PROPERTIES LTD,TC15000274,"95,177.77",Property related costs
MOJ,HMCTS,22/09/2020,EXP - RENTALS UNDER NON-PFI OPERATING LEASES - BUILDINGS,HMCTS Estate,STANDARD LIFE INVESTMENTS,TC15000271,"179,913.00",Property related costs
MOJ,HMCTS,22/09/2020,EXP - SERVICE ELEMENT OF PFI FINANCE LEASES - Buildings,HMCTS Estate,SERVICES SUPPORT (AVON & SOMERSET) LTD,RINV/65,"910,400.27",Property related costs
MOJ,HMCTS,22/09/2020,IA - POA & AUC - COST - ADDITIONS,HMCTS Digital,CGI IT UK LTD,GB014044876,"31,007.06",Information technology costs
MOJ,HMCTS,22/09/2020,IA - POA & AUC - COST - ADDITIONS,HMCTS Digital,CAPGEMINI UK PLC,2.60011E+12,"46,200.00",Information technology costs
MOJ,HMCTS,22/09/2020,IA - POA & AUC - COST - ADDITIONS,HMCTS Digital,COGNIZANT WORLDWIDE LTD,CW101-0000545429,"74,816.04",Information technology costs
MOJ,HMCTS,22/09/2020,IA - POA & AUC - COST - ADDITIONS,HMCTS Digital,CAPGEMINI UK PLC,2.60011E+12,"88,866.00",Information technology costs
MOJ,HMCTS,22/09/2020,IA - POA & AUC - COST - ADDITIONS,HMCTS Digital,COGNIZANT WORLDWIDE LTD,CW101-0000545427,"171,755.30",Information technology costs
MOJ,HMCTS,22/09/2020,PPE - POA & AUC (OWNED) - COST - ADDITIONS - BUILDINGS,HMCTS Estate,VINCI CONSTRUCTION UK LTD,20090430,"36,404.00",Property related costs
MOJ,HMCTS,23/09/2020,CA - PREPAYMENTS (NON-PFI) - Rent Prepayment Control,HMCTS Estate,LONDONDERRY ADMINISTRATIVE SERVICES,CS0734A,"37,125.00",Property related costs
MOJ,HMCTS,23/09/2020,EXP - PURCHASE OF GOODS/SERVICES - ACCOMMODATION & BLDNG MANAGEMENT - Property Service Charges,HMCTS Estate,LEEDS PLACE PROPERTY LTD,694A,"40,893.16",Property related costs
MOJ,HMCTS,23/09/2020,EXP - PURCHASE OF GOODS/SERVICES - IT MANAGEMENT AND CHANGE - Exit Management,HMCTS Digital,VODAFONE LTD,495745,"29,958.37",Information technology costs
MOJ,HMCTS,23/09/2020,EXP - PURCHASE OF GOODS/SERVICES - SUPPORT - APPLICATION MAINTENANCE AND SUPPORT,HMCTS Digital,CGI IT UK LTD,GB014045067,"92,550.64",Information technology costs
MOJ,HMCTS,23/09/2020,IA - POA & AUC - COST - ADDITIONS,HMCTS Digital,CGI IT UK LTD,GB014044686,"29,321.16",Information technology costs
MOJ,HMCTS,23/09/2020,IA - POA & AUC - COST - ADDITIONS,HMCTS Digital,SOLIRIUS CONSULTING LTD,2470-ARCH-SCHLAS-001,"35,100.00",Information technology costs
MOJ,HMCTS,23/09/2020,IA - POA & AUC - COST - ADDITIONS,HMCTS Digital,CGI IT UK LTD,GB014044693,"37,007.16",Information technology costs
MOJ,HMCTS,23/09/2020,IA - POA & AUC - COST - ADDITIONS,HMCTS Digital,SOLIRIUS CONSULTING LTD,2471-ARCH-SCHLAS-002,"55,800.00",Information technology costs
MOJ,HMCTS,23/09/2020,IA - SOFTWARE LICENCES - COST - ADDITIONS,HMCTS Digital,CGI IT UK LTD,GB014044878,"25,632.36",Information technology costs
MOJ,HMCTS,24/09/2020,CA - OTHER RECEIVABLES - Neopost Deposit,Regional Directors Office - North West Region,QUADIENT UK LTD CONSUMABLES,GA10120691,"76,340.00",Postal servicess
MOJ,HMCTS,24/09/2020,CA - PREPAYMENTS (NON-PFI) - Rent Prepayment Control,HMCTS Estate,CANADA LIFE LTD,AJ20101266,"286,302.89",Property related costs
MOJ,HMCTS,24/09/2020,CA - PREPAYMENTS (NON-PFI) - Rent Prepayment Control,HMCTS Estate,KNIGHT FRANK LLP,AJ20101265,"1,354,611.26",Property related costs
MOJ,HMCTS,24/09/2020,EXP - PURCHASE OF GOODS/SERVICES - ACCOMMODATION & BLDNG MANAGEMENT - OFFICE CLEANING,HMCTS Estate,ENGIE SERVICES LTD,1800078653,"3,741,330.05",Property related costs
MOJ,HMCTS,24/09/2020,EXP - PURCHASE OF GOODS/SERVICES - ACCOMMODATION & BLDNG MANAGEMENT - Property Service Charges,HMCTS Estate,FCFM GROUP PROPERTIES III LTD,TC15000280,"147,010.50",Property related costs
MOJ,HMCTS,24/09/2020,EXP - PURCHASE OF GOODS/SERVICES - OFFICE RELATED - POSTAGE,HMCTS,CITYSPRINT UK LTD,3425677,"25,126.16",Postal servicess
MOJ,HMCTS,24/09/2020,EXP - PURCHASE OF GOODS/SERVICES - OTHER - Bailiff Services,Regional Enforcement Managers,HOME OFFICE,2561752,"1,581,003.99",Bailiff Services
MOJ,HMCTS,24/09/2020,EXP - PURCHASE OF GOODS/SERVICES - OTHER - Central Funds - Defence Costs Solicitor,Supreme Courts Cost office,EDMONDS MARSHALL MCMAHON,GB37179720,"41,515.90",Legal services
MOJ,HMCTS,24/09/2020,EXP - RENTALS UNDER NON-PFI OPERATING LEASES - BUILDINGS,HMCTS Estate,COLUMBUS HOUSE PROPERTIES LTD,TC15000276,"63,000.00",Property related costs
MOJ,HMCTS,24/09/2020,PPE - POA & AUC (OWNED) - COST - ADDITIONS - BUILDINGS,HMCTS Estate,ENGIE SERVICES LTD,1800079314,"40,893.42",Property related costs
MOJ,HMCTS,25/09/2020,CA - PREPAYMENTS (NON-PFI) - Rent Prepayment Control,HMCTS Estate,JONES LANG LASALLE LTD,AJ20101263,"845,841.09",Property related costs
MOJ,HMCTS,25/09/2020,CA - PREPAYMENTS (NON-PFI) - Rent Prepayment Control,HMCTS Estate,CBRE LTD,202000022010/11939,"1,484,010.00",Property related costs
MOJ,HMCTS,25/09/2020,EXP - PURCHASE OF GOODS/SERVICES - ACCOMMODATION & BLDNG MANAGEMENT - Hirings,Additional Court and Tribunal Capacity Project,ETC VENUES LTD,PH-243992,"276,000.00",Property related costs
MOJ,HMCTS,25/09/2020,EXP - PURCHASE OF GOODS/SERVICES - ACCOMMODATION & BLDNG MANAGEMENT - Other Property Maintenance,Additional Court and Tribunal Capacity Project,PORTAKABIN LTD,900895009,"50,613.60",Property related costs
MOJ,HMCTS,25/09/2020,EXP - PURCHASE OF GOODS/SERVICES - ACCOMMODATION & BLDNG MANAGEMENT - Property Service Charges,HMCTS Estate,HARTNELL TAYLOR COOK LLP,TC15000282,"36,430.50",Property related costs
MOJ,HMCTS,25/09/2020,EXP - PURCHASE OF GOODS/SERVICES - CATERING & HOSPITALITY - Events and Conferences,Additional Court and Tribunal Capacity Project,CALDER CONFERENCES LTD,403318,"184,000.00",Property related costs
MOJ,HMCTS,25/09/2020,EXP - PURCHASE OF GOODS/SERVICES - FM PRIORITY PROJECT WORKS,HMCTS Estate,RICOH UK LTD,58053194,"34,673.34",Property related costs
MOJ,HMCTS,25/09/2020,EXP - PURCHASE OF GOODS/SERVICES - FM PRIORITY PROJECT WORKS,HMCTS Estate,RICOH UK LTD,58049475,"37,870.45",Property related costs
MOJ,HMCTS,25/09/2020,EXP - PURCHASE OF GOODS/SERVICES - FM PRIORITY PROJECT WORKS,HMCTS Estate,RICOH UK LTD,58049470,"49,886.74",Property related costs
MOJ,HMCTS,25/09/2020,EXP - PURCHASE OF GOODS/SERVICES - FM PRIORITY PROJECT WORKS,HMCTS Estate,RICOH UK LTD,58049474,"53,983.26",Property related costs
MOJ,HMCTS,25/09/2020,EXP - PURCHASE OF GOODS/SERVICES - FM PRIORITY PROJECT WORKS,HMCTS Estate,RICOH UK LTD,58046643,"74,854.04",Property related costs
MOJ,HMCTS,25/09/2020,EXP - PURCHASE OF GOODS/SERVICES - FM PRIORITY PROJECT WORKS,HMCTS Estate,RICOH UK LTD,58054158,"80,754.68",Property related costs
MOJ,HMCTS,25/09/2020,EXP - PURCHASE OF GOODS/SERVICES - FM PRIORITY PROJECT WORKS,HMCTS Estate,RICOH UK LTD,58049473,"114,851.26",Property related costs
MOJ,HMCTS,25/09/2020,EXP - PURCHASE OF GOODS/SERVICES - SUPPORT - APPLICATION MAINTENANCE AND SUPPORT,HMCTS Digital,6POINT6 LTD,2379,"46,620.00",Information technology costs
MOJ,HMCTS,25/09/2020,EXP - PURCHASE OF GOODS/SERVICES - TELECOMS - DATA COMMUNICATIONS,HMCTS Digital,6POINT6 LTD,2377,"30,640.00",Information technology costs
MOJ,HMCTS,25/09/2020,EXP - SERVICE ELEMENT OF PFI FINANCE LEASES - Buildings,HMCTS Estate,MODERN COURTS (HUMBERSIDE) LTD,318,"471,543.74",Property related costs
MOJ,HMCTS,25/09/2020,IA - POA & AUC - COST - ADDITIONS,Tech Team,PA CONSULTING SERVICES LTD,3519,"28,051.20",Information technology costs
MOJ,HMCTS,25/09/2020,IA - POA & AUC - COST - ADDITIONS,HMCTS Digital,SOLIRIUS CONSULTING LTD,2736-QA-FH-01,"28,380.00",Information technology costs
MOJ,HMCTS,25/09/2020,PPE - PLANT & MACHINERY (OWNED) - COST - ADDITIONS,HMCTS Estate,ENGIE SERVICES LTD,1800079347,"40,352.09",Property related costs
MOJ,HMCTS,25/09/2020,PPE - POA & AUC (OWNED) - COST - ADDITIONS - BUILDINGS,HMCTS Estate,FAITHFUL & GOULD,20038943,"27,571.92",Property related costs
MOJ,HMCTS,25/09/2020,PPE - POA & AUC (OWNED) - COST - ADDITIONS - BUILDINGS,Edward House Birmingham,ENGIE SERVICES LTD,1800079333,"126,468.47",Information technology costs
MOJ,HMCTS,26/09/2020,EXP - PURCHASE OF GOODS/SERVICES - CATERING & HOSPITALITY - Events and Conferences,Additional Court and Tribunal Capacity Project,CALDER CONFERENCES LTD,403319,"238,560.00",Property related costs
MOJ,HMCTS,28/09/2020,CA - PREPAYMENTS (NON-PFI) - Rent Prepayment Control,HMCTS Estate,ELLAZA LTD,AJ20101273,"26,913.60",Property related costs
MOJ,HMCTS,28/09/2020,CA - PREPAYMENTS (NON-PFI) - Rent Prepayment Control,HMCTS Estate,CUSHMAN & WAKEFIELD,AJ20101276,"41,799.80",Property related costs
MOJ,HMCTS,28/09/2020,CA - PREPAYMENTS (NON-PFI) - Rent Prepayment Control,HMCTS Estate,RAINHAM PROPERTIES LTD,AJ20101270,"51,000.00",Property related costs
MOJ,HMCTS,28/09/2020,CA - PREPAYMENTS (NON-PFI) - Rent Prepayment Control,HMCTS Estate,WSB PROPERTY CONSULTANTS LLP,AJ20101281,"55,277.80",Property related costs
MOJ,HMCTS,28/09/2020,CA - PREPAYMENTS (NON-PFI) - Rent Prepayment Control,HMCTS Estate,MINTON HOLDINGS LTD,AJ20101269,"71,690.70",Property related costs
MOJ,HMCTS,28/09/2020,CA - PREPAYMENTS (NON-PFI) - Rent Prepayment Control,HMCTS Estate,JOHN MICHAEL PADLEY,AJ20101268,"79,500.00",Property related costs
MOJ,HMCTS,28/09/2020,CA - PREPAYMENTS (NON-PFI) - Rent Prepayment Control,HMCTS Estate,WORKMAN,AJ20101275,"81,900.00",Property related costs
MOJ,HMCTS,28/09/2020,CA - PREPAYMENTS (NON-PFI) - Rent Prepayment Control,HMCTS Estate,SAVILLS (UK) LTD,AJ20101271,"96,001.26",Property related costs
MOJ,HMCTS,28/09/2020,CA - PREPAYMENTS (NON-PFI) - Rent Prepayment Control,HMCTS Estate,SAVILLS (UK) LTD,AJ20101272,"131,284.50",Property related costs
MOJ,HMCTS,28/09/2020,CA - PREPAYMENTS (NON-PFI) - Rent Prepayment Control,HMCTS Estate,MAPP LTD,AJ20101280,"227,651.29",Property related costs
MOJ,HMCTS,28/09/2020,CA - PREPAYMENTS (NON-PFI) - Rent Prepayment Control,HMCTS Estate,MAPP LTD,AJ20101279,"236,656.33",Property related costs
MOJ,HMCTS,28/09/2020,CA - PREPAYMENTS (NON-PFI) - Rent Prepayment Control,HMCTS Estate,STANDARD LIFE INVESTMENTS,AJ20101274,"329,477.10",Property related costs
MOJ,HMCTS,28/09/2020,CA - PREPAYMENTS (NON-PFI) - Rent Prepayment Control,HMCTS Estate,CBRE LTD,AJ20101277,"798,874.51",Property related costs
MOJ,HMCTS,28/09/2020,CA - PREPAYMENTS (NON-PFI) - Rent Prepayment Control,HMCTS Estate,SAVILLS (UK) LTD,D159730A,"3,873,515.70",Property related costs
MOJ,HMCTS,28/09/2020,EXP - PURCHASE OF GOODS/SERVICES - ACCOMMODATION & BLDNG MANAGEMENT - Property Service Charges,HMCTS Estate,CITY OF LONDON,P194307A,"107,839.37",Property related costs
MOJ,HMCTS,28/09/2020,EXP - SHORT-TERM CONTRACT & AGENCY STAFF - FULL COST - Clerical and Admin,EU Exit Programme Funding,BROOK STREET UK LTD-2WM,2.02031E+11,"1,246,126.60",Agency staff
MOJ,HMCTS,28/09/2020,EXP - SHORT-TERM CONTRACT & AGENCY STAFF - FULL COST - Specialist / Professional,Operations HQ Private Office,ALEXANDER MANN SOLUTIONS LTD-2WM,2208048,"25,745.76",Agency staff
MOJ,HMCTS,29/09/2020,EXP - PURCHASE OF GOODS/SERVICES - FM PRIORITY PROJECT WORKS,HMCTS Estate,RICOH UK LTD,58058132,"28,418.54",Property related costs
MOJ,HMCTS,29/09/2020,EXP - PURCHASE OF GOODS/SERVICES - SUPPORT - OTHER,HMCTS Digital,SOLIRIUS CONSULTING LTD,2355-QA-VH-01,"44,145.00",Information technology costs
MOJ,HMCTS,29/09/2020,IA - POA & AUC - COST - ADDITIONS,HMCTS Digital,SOLIRIUS CONSULTING LTD,2713-QA-CCD-03,"42,720.00",Information technology costs
MOJ,HMCTS,29/09/2020,PPE - POA & AUC (OWNED) - COST - ADDITIONS - BUILDINGS,HMCTS Estate,ENGIE SERVICES LTD,1800079514,"170,754.84",Property related costs
MOJ,HMCTS,30/09/2020,CA - PREPAYMENTS (NON-PFI) - Rent Prepayment Control,HMCTS Estate,SUFFOLK LIFE,SI5500053A,"31,680.00",Property related costs
MOJ,HMCTS,30/09/2020,CA - PREPAYMENTS (NON-PFI) - Rent Prepayment Control,HMCTS Estate,AYLESBURY CONSERVATIVES,SS19/20A,"47,236.02",Property related costs
MOJ,HMCTS,30/09/2020,CA - PREPAYMENTS (NON-PFI) - Rent Prepayment Control,HMCTS Estate,COLENSO PROPERTY SERVICES LLP,574330A,"66,900.00",Property related costs
MOJ,HMCTS,30/09/2020,CA - PREPAYMENTS (NON-PFI) - Rent Prepayment Control,HMCTS Estate,COLENSO PROPERTY SERVICES LLP,574308A,"78,147.17",Property related costs
MOJ,HMCTS,30/09/2020,EXP - PURCHASE OF GOODS/SERVICES - ACCOMMODATION & BLING MANAGEMENT - Building Fees and Professional Services,Managing Virtual Hearings Project,KINLY LTD,IN02-103205,"128,640.00",Professional services
MOJ,HMCTS,30/09/2020,EXP - PURCHASE OF GOODS/SERVICES - OTHER - Translation / Interpreting Services,HMCTS,THEBIGWORD INTERPRETING SERVICES LTD,90580857,"501,280.44",Translation / Interpreting services
MOJ,HMCTS,30/09/2020,EXP - PURCHASE OF GOODS/SERVICES - OTHER PROFESSIONAL SERVICES - Legal Services - Counsel,Supreme Courts Cost office,ORACLE SOLICITORS,GB37179748,"27,680.67",Legal services
MOJ,HMCTS,30/09/2020,EXP - PURCHASE OF GOODS/SERVICES - SUPPORT - APPLICATION MAINTENANCE AND SUPPORT,HMCTS Digital,SOLIRIUS CONSULTING LTD,2716-QA-PRD-01,"29,670.00",Information technology costs
MOJ,HMCTS,30/09/2020,EXP - SERVICE ELEMENT OF PFI FINANCE LEASES - Buildings,HMCTS Estate,H AND W COURTS LIMITED,H&W2020-11,"699,585.83",Property related costs
MOJ,HMCTS,30/09/2020,EXP - SHORT-TERM CONTRACT & AGENCY STAFF - FULL COST - Specialist / Professional,Digital Directorate Programme Staff,GATENBY SANDERSON,123HM,"77,760.00",Agency staff
MOJ,HMCTS,30/09/2020,IA - POA & AUC - COST - ADDITIONS,HMCTS Digital,SOLIRIUS CONSULTING LTD,2714-QA-EUI-03,"27,600.00",Information technology costs
MOJ,HMCTS,30/09/2020,IA - POA & AUC - COST - ADDITIONS,HMCTS Digital,SOLIRIUS CONSULTING LTD,2725-QA-DFR-01,"27,600.00",Information technology costs
MOJ,HMCTS,30/09/2020,IA - POA & AUC - COST - ADDITIONS,HMCTS Digital,QA CONSULTING SERVICES LTD,QACI005856,"36,828.00",Information technology costs
MOJ,HMCTS,30/09/2020,IA - POA & AUC - COST - ADDITIONS,HMCTS Digital,ATOS IT SERVICES UK LTD,5584343742,"91,080.00",Information technology costs
